Workbook

Sheet Main
Q2: Encre et papier | R2: Option de taille de coupe | S2: Nombre de pages | T2: Rainure centrale | U2: Texte du fond perdu intérieur | V2: Texte intérieur sans fond perdu
Q3: =InkPaperChoice -> Encre noire & papier blanc | R3: =TrimSizeChoice -> 12,7 x 20,32 cm (5" x 8") | S3: =PageCountChoice -> 336 | T3: =VLOOKUP(S3, LU_Margins[#All], 6, FALSE)&" Rainure centrale" -> 15,875 mm (0,625") Rainure centrale | U3: =TrimSizeChoice&" Taille de coupe du manuscrit avec fond perdu @ "&PageCountChoice&" Pages" -> 12,7 x 20,32 cm (5" x 8") Taille de coupe du manuscrit avec fond perdu @ 336 Pages | V3: =TrimSizeChoice&" Taille de coupe du manuscrit @ "&PageCountChoice&" Pages" -> 12,7 x 20,32 cm (5" x 8") Taille de coupe du manuscrit @ 336 Pages | X3: =TrimSizeChoice&" Taille de coupe @ "&PageCountChoice&" Pages" -> 12,7 x 20,32 cm (5" x 8") Taille de coupe @ 336 Pages
N4: Nombre maximum de pages selon les types d’encre et de papier et la taille de coupe
Q5: Taille de coupe du manuscrit (L) | R5: Taille de coupe du manuscrit (H) | S5: Taille de coupe du manuscrit (po) | T5: Taille de coupe du manuscrit (cm) | U5: Rainure centrale (po) | V5: Rainure centrale (mm) | W5: Marge extérieure (po) | X5: Marge extérieure (cm)
Q6: =VLOOKUP(R3, LU_TrimSizes[], 9, FALSE)&" Taille de coupe" -> 12,7 cm (5") Taille de coupe | R6: =VLOOKUP(R3, LU_TrimSizes[], 10, FALSE)&" Taille de coupe" -> 20,32 cm (8") Taille de coupe | S6: =VLOOKUP(R3, LU_TrimSizes[], 4, FALSE) -> 5" x 8" | T6: =VLOOKUP(R3, LU_TrimSizes[], 7, FALSE) -> (12.7 x 20.32 cm) | U6: =VLOOKUP(S3, LU_Margins[#All], 4, FALSE)&"""" -> 0,375" | V6: =VLOOKUP(S3, LU_Margins[#All], 5, FALSE)&" mm" -> 15,875 mm | W6: 0.25 | X6: =W6*cm -> 0.635
U7: =VLOOKUP(S3, LU_Margins[#All], 4, FALSE) -> 0.375 | V7: =GutterINmath*cm -> 0.9525
Q8: Taille de coupe du manuscrit + fond perdu (L) | R8: Taille de coupe du manuscrit + fond perdu (H) | S8: Taille de coupe du manuscrit + fond perdu (po) | T8: Taille de coupe du manuscrit + fond perdu (cm)
Q9: =VLOOKUP(R3, LU_TrimSizes[], 13, FALSE)&" Taille de coupe + fond perdu" -> 13,0175 cm (5,125") Taille de coupe + fond perdu | R9: =VLOOKUP($R$3, LU_TrimSizes[], 14, FALSE)&" Taille de coupe + fond perdu" -> 20,955 cm (8,25") Taille de coupe + fond perdu | S9: =VLOOKUP($R$3, LU_TrimSizes[], 17, FALSE) -> 5,125" x 8,25" | T9: =VLOOKUP($R$3, LU_TrimSizes[], 18, FALSE) -> 13,0175 cm x 20,955 cm | V9: Nbr de pages max.
V10: =INDEX(Rng_IndexPgMax, MATCH(TrimSizeChoice, List_TrimSize, 0), MATCH(InkPaperChoice, InkPaperMax, 0)) -> 828
Q11: Manuscript Safe Zone (W) | R11: Zone de sécurité du manuscrit (H) | S11: Zone de sécurité du manuscrit (po) | T11: Zone de sécurité du manuscrit (cm)
Q12: =VLOOKUP(TrimSizeChoice, LU_TrimSizes[], 21, FALSE)&" Zone de sécurité" -> 11,1125 cm (4,375") Zone de sécurité | R12: =VLOOKUP(TrimSizeChoice, LU_TrimSizes[], 24, FALSE)&" Zone de sécurité" -> 19,05 cm (7,5") Zone de sécurité | S12: =VLOOKUP(TrimSizeChoice, LU_TrimSizes[], 25, FALSE) -> 4,375" x 7,5" | T12: =VLOOKUP(TrimSizeChoice, LU_TrimSizes[], 26, FALSE) -> 11,1125 cm x 19,05 cm
I13: Encre noire & papier blanc
Q14: PPI (po) | R14: PPI (mm) | S14: PPI (cm)
Q15: =VLOOKUP(InkPaperChoice, LU_InkPaper[], 4, FALSE) -> 0.002252 | R15: =VLOOKUP(InkPaperChoice, LU_InkPaper[], 5, FALSE) -> 0.0572 | S15: =VLOOKUP(InkPaperChoice, LU_InkPaper[], 6, FALSE) -> 0.00572
I16: 12,7 x 20,32 cm (5" x 8")
Q17: Largeur dos (po) | R17: Largeur dos (mm) | S17: Largeur dos (cm) | T17: Taille de la largeur dos
Q18: =ROUND(PageCountChoice*PPI_In, 5) -> 0.75667 | R18: =ROUND(PageCountChoice*PPI__mm, 5) -> 19.2192 | S18: =ROUND(PageCountChoice*PPI__cm, 5) -> 1.92192
I19: 336 | Q19: =Q18&"""" -> 0,75667" | R19: =R18&" mm" -> 19,2192 mm | S19: =S18&" cm" -> 1,92192 cm | T19: =SpineWidthMM&" ("&SpineWidthIn&")" &" Largeur dos (po)" -> 19,2192 mm (0,75667") Largeur dos (po)
Q21: Taille texte dos (po) | R21: Taille texte dos (mm) | S21: Taille du texte dos (cm) | T21: Taille du texte dos
Q22: =ROUND(SpineWidthInMath-cMarginSLIn-cMarginSRIn, 5) -> 0.63167 | R22: =ROUND(SpineWidthMMmath-cMarginSLmm-cMarginSRmm, 5) -> 16.0442 | S22: =ROUND(SpineWidthCmMath-cMarginSLcm-cMarginSRcm, 5) -> 1.60442 | T22: =R23&" ("&Q23&")"&" Largeur de la taille du texte dos" -> 16,0442 mm (0,63167") Largeur de la taille du texte dos
Q23: =SpineTextInMath&"""" -> 0,63167" | R23: =SpineTextMMmath&" mm" -> 16,0442 mm | S23: =SpineTextCMmath&" cm" -> 1,60442 cm
Q25: Largeur de la couverture | R25: Hauteur de la couverture | S25: Taille de la couverture (po) | T25: Taille de la couverture (cm)
Q26: =VLOOKUP(TrimSizeChoice, LU_TrimSizes[], 29, FALSE)&" Largeur de la couverture" -> 27,95692 cm (11,00667 cm) Largeur de la couverture | R26: =VLOOKUP(TrimSizeChoice, LU_TrimSizes[], 32, FALSE)&" Hauteur de la couverture" -> 20,955 cm (8,25") Hauteur de la couverture | S26: =VLOOKUP(TrimSizeChoice, LU_TrimSizes[], 33, FALSE) -> 11,00667" x 8,25" | T26: =VLOOKUP(TrimSizeChoice, LU_TrimSizes[], 34, FALSE) -> 27,95692 cm x 20,955 cm
Q28: Zone de sécurité de la couverture (Largeur) | R28: Zone de sécurité de la couverture (Hauteur) | S28: Zone de sécurité de la couverture (po) | T28: Zone de sécurité de la couverture (cm)
Q29: =VLOOKUP(TrimSizeChoice, LU_TrimSizes[], 37, FALSE)&" Zone de sécurité" -> 26,68692 cm (10,50667") Zone de sécurité | R29: =VLOOKUP(TrimSizeChoice, LU_TrimSizes[], 38, FALSE)&" Zone de sécurité" -> 19,685 cm (7,75") Zone de sécurité | S29: =VLOOKUP(TrimSizeChoice, LU_TrimSizes[], 41, FALSE) -> 10,50667" x 7,75" | T29: =VLOOKUP(TrimSizeChoice, LU_TrimSizes[], 42, FALSE) -> 26,68692 cm x 19,685 cm

Sheet Interior-Bleed
A2: Manuscrit avec fond perdu

Sheet Interior-NoBleed
A2: Manuscrit sans fond perdu

Sheet Cover-LTR
C2: Couverture

Sheet Cover-RTL (hidden)

Sheet Lists (hidden)
B1: Requirements List | G1: Official Ink & Color Text | H1: Ink | I1: Paper | J1: Page thickness (Inches) | K1: Page Thickness (mm) | L1: Page Thickness (cm) | M1: Inch | N1: cm | O1: mm | R1: PageCount | S1: Inside (Gutter Margin) | T1: Outside Margin - No Bleed | U1: Outside margin - Bleed | V1: Gutter (mm) | W1: Gutter Full Name | Y1: Trim Sizes - Inches and cm
A2: ReqKey | B2: Category | C2: SubCategory | D2: SubCategory Requirement | E2: Name | G2: =LU_InkPaper[[#This Row],[Ink]]&" & "&LU_InkPaper[[#This Row],[Paper]] -> Encre noire & papier crème | H2: Encre noire | I2: papier crème | J2: 0.0025 | K2: =ROUND(J2*mm,5) -> 0.0635 | L2: =ROUND(LU_InkPaper[[#This Row],[Page thickness (Inches)]]*cm, 5) -> 0.00635 | M2: 1 | N2: 2.54 | O2: 25.4 | R2: 24 | S2: 0.375 | T2: 0.25 | U2: 0.375 | V2: =ROUND(S2*mm, 5) -> 9.525 | W2: =V2&" mm"&" ("&S2&""")" -> 9,525 mm (0,375") | Y2: List_TrimSize | Z2: Trim Width (in) | AA2: Trim Height (in) | AB2: Trim Size (in) | AC2: Trim Width (cm) | AD2: Trim Height (cm) | AE2: Trim Size (cm) | AF2: Full Trim Size | AG2: Manuscript Trim W | AH2: Manuscript Trim H | AI2: Trim W Bleed (in) | AJ2: Trim H Bleed (in) | AK2: Manuscript Trim Bleed W | AL2: Manuscript Trim Bleed H | AM2: Trim W Bleed (cm) | AN2: Trim H Bleed (cm) | AO2: Full Trim Bleed (in) | AP2: Full Trim Bleed (cm) | AQ2: Manuscript Safe Zone W in | AR2: Manuscript Safe Zone W cm | AS2: Manuscript Safe Zone W | AT2: Manuscript Safe Zone H in | AU2: Manuscript Safe Zone H (cm) | AV2: Manuscript Safe Zone H | AW2: Manuscript Safe Zone IN | AX2: Manuscript Safe Zone (cm) | AY2: Cover W In | AZ2: Cover W (cm) | BA2: Cover Width | BB2: Cover Height In | BC2: Cover Height CM | BD2: Cover Height | BE2: Cover Size In | BF2: Cover Size CM | BG2: Cover Safe Zone W (in) | BH2: Cover Safe Zone W cm | BI2: Cover Safe Zone W | BJ2: Cover Safe Zone H | BK2: Cover Safe Zone H in | BL2: Cover Safe Zone H cm | BM2: Cover Safe Zone IN | BN2: Cover Safe Zone CM | BO2: Encre noire & papier crème | BP2: Encre noire & papier blanc | BQ2: Encre de couleur & papier blanc
A3: 1 | B3: Manuscript | C3: No Bleed Manuscript Layout | D3: Outside Margin | E3: =CmMarginO | G3: =LU_InkPaper[[#This Row],[Ink]]&" & "&LU_InkPaper[[#This Row],[Paper]] -> Encre noire & papier blanc | H3: Encre noire | I3: papier blanc | J3: 0.002252 | K3: =ROUND(J3*mm,5) -> 0.0572 | L3: =ROUND(LU_InkPaper[[#This Row],[Page thickness (Inches)]]*cm, 5) -> 0.00572 | R3: 25 | S3: 0.375 | T3: 0.25 | U3: 0.375 | V3: 9.525 | W3: =V3&" mm"&" ("&S3&""")" -> 9,525 mm (0,375") | Y3: 12,7 x 20,32 cm (5" x 8") | Z3: 5 | AA3: 8 | AB3: 5" x 8" | AC3: 12.7 | AD3: 20.32 | AE3: (12.7 x 20.32 cm) | AF3: 12,7 x 20,32 cm (5" x 8") | AG3: =LU_TrimSizes[[#This Row],[Trim Width (cm)]]&" cm ("&LU_TrimSizes[[#This Row],[Trim Width (in)]]&""")" -> 12,7 cm (5") | AH3: =LU_TrimSizes[[#This Row],[Trim Height (cm)]]&" cm ("&LU_TrimSizes[[#This Row],[Trim Height (in)]]&""")" -> 20,32 cm (8") | AI3: =ROUND(LU_TrimSizes[[#This Row],[Trim Width (in)]]+0.125, 5)&"""" -> 5,125" | AJ3: =ROUND(LU_TrimSizes[[#This Row],[Trim Height (in)]]+0.25, 5)&"""" -> 8,25" | AK3: =LU_TrimSizes[[#This Row],[Trim W Bleed (cm)]]&" ("&LU_TrimSizes[[#This Row],[Trim W Bleed (in)]]&")" -> 13,0175 cm (5,125") | AL3: =LU_TrimSizes[[#This Row],[Trim H Bleed (cm)]]&" ("&LU_TrimSizes[[#This Row],[Trim H Bleed (in)]]&")" -> 20,955 cm (8,25") | AM3: =ROUND(LU_TrimSizes[[#This Row],[Trim Width (in)]]*cm+blcmw, 5)&" cm" -> 13,0175 cm | AN3: =ROUND(LU_TrimSizes[[#This Row],[Trim Height (in)]]*cm+blcmh, 5)&" cm" -> 20,955 cm | AO3: =LU_TrimSizes[[#This Row],[Trim W Bleed (in)]]&" x "&LU_TrimSizes[[#This Row],[Trim H Bleed (in)]] -> 5,125" x 8,25" | AP3: =LU_TrimSizes[[#This Row],[Trim W Bleed (cm)]]&" x "&LU_TrimSizes[[#This Row],[Trim H Bleed (cm)]] -> 13,0175 cm x 20,955 cm | AQ3: =ROUND(LU_TrimSizes[[#This Row],[Trim Width (in)]]-GutterINmath-MarginOinMath, 5) -> 4.375 | AR3: =ROUND(LU_TrimSizes[[#This Row],[Trim Width (cm)]]-GutterCMmath-MarginOcmMath, 5) -> 11.1125 | AS3: =LU_TrimSizes[[#This Row],[Manuscript Safe Zone W cm]]&" cm ("&LU_TrimSizes[[#This Row],[Manuscript Safe Zone W in]]&""")" -> 11,1125 cm (4,375") | AT3: =ROUND(LU_TrimSizes[[#This Row],[Trim Height (in)]]-MarginOinMath-MarginOinMath, 5) -> 7.5 | AU3: =ROUND(LU_TrimSizes[[#This Row],[Trim Height (cm)]]-MarginOcmMath-MarginOcmMath, 5) -> 19.05 | AV3: =LU_TrimSizes[[#This Row],[Manuscript Safe Zone H (cm)]]&" cm ("&LU_TrimSizes[[#This Row],[Manuscript Safe Zone H in]]&""")" -> 19,05 cm (7,5") | AW3: =LU_TrimSizes[[#This Row],[Manuscript Safe Zone W in]]&""" x "&LU_TrimSizes[[#This Row],[Manuscript Safe Zone H in]]&"""" -> 4,375" x 7,5" | AX3: =LU_TrimSizes[[#This Row],[Manuscript Safe Zone W cm]]&" cm x "&LU_TrimSizes[[#This Row],[Manuscript Safe Zone H (cm)]]&" cm" -> 11,1125 cm x 19,05 cm | AY3: =ROUND(CBleedLin+LU_TrimSizes[[#This Row],[Trim Width (in)]]+SpineWidthInMath+LU_TrimSizes[[#This Row],[Trim Width (in)]]+CBleedRIn, 5) -> 11.00667 | AZ3: =ROUND(LU_TrimSizes[[#This Row],[Trim Width (cm)]]+CBleedLcm+SpineWidthCmMath+CBleedRcm+LU_TrimSizes[[#This Row],[Trim Width (cm)]], 5) -> 27.95692 | BA3: =LU_TrimSizes[[#This Row],[Cover W (cm)]]&" cm ("&LU_TrimSizes[[#This Row],[Cover W In]]&" cm)" -> 27,95692 cm (11,00667 cm) | BB3: =ROUND(CBleedTIn+LU_TrimSizes[[#This Row],[Trim Height (in)]]+CBleedBIn, 5) -> 8.25 | BC3: =ROUND(CBleedTcm+LU_TrimSizes[[#This Row],[Trim Height (cm)]]+CBleedBcm, 5) -> 20.955 | BD3: =LU_TrimSizes[[#This Row],[Cover Height CM]]&" cm ("&LU_TrimSizes[[#This Row],[Cover Height In]]&""")" -> 20,955 cm (8,25") | BE3: =LU_TrimSizes[[#This Row],[Cover W In]]&""" x "&LU_TrimSizes[[#This Row],[Cover Height In]]&"""" -> 11,00667" x 8,25" | BF3: =LU_TrimSizes[[#This Row],[Cover W (cm)]]&" cm x "&LU_TrimSizes[[#This Row],[Cover Height CM]]&" cm" -> 27,95692 cm x 20,955 cm | BG3: =ROUND(LU_TrimSizes[[#This Row],[Cover W In]]-0.5, 5) -> 10.50667 | BH3: =ROUND(LU_TrimSizes[[#This Row],[Cover W (cm)]]-1.27, 5) -> 26.68692 | BI3: =LU_TrimSizes[[#This Row],[Cover Safe Zone W cm]]&" cm ("&LU_TrimSizes[[#This Row],[Cover Safe Zone W (in)]]&""")" -> 26,68692 cm (10,50667") | BJ3: =LU_TrimSizes[[#This Row],[Cover Safe Zone H cm]]&" cm ("&LU_TrimSizes[[#This Row],[Cover Safe Zone H in]]&""")" -> 19,685 cm (7,75") | BK3: =ROUND(LU_TrimSizes[[#This Row],[Cover Height In]]-0.5, 5) -> 7.75 | BL3: =ROUND(LU_TrimSizes[[#This Row],[Cover Height CM]]-1.27, 5) -> 19.685 | BM3: =LU_TrimSizes[[#This Row],[Cover Safe Zone W (in)]]&""" x "&LU_TrimSizes[[#This Row],[Cover Safe Zone H in]]&"""" -> 10,50667" x 7,75" | BN3: =LU_TrimSizes[[#This Row],[Cover Safe Zone W cm]]&" cm x "&LU_TrimSizes[[#This Row],[Cover Safe Zone H cm]]&" cm" -> 26,68692 cm x 19,685 cm | BO3: 776 | BP3: 828 | BQ3: 828
A4: 2 | B4: Manuscript | C4: No Bleed Manuscript Layout | D4: Gutter Margin | E4: =mMarginG | G4: =LU_InkPaper[[#This Row],[Ink]]&" & "&LU_InkPaper[[#This Row],[Paper]] -> Encre de couleur & papier blanc | H4: Encre de couleur | I4: papier blanc | J4: 0.002347 | K4: =ROUND(J4*mm,5) -> 0.05961 | L4: =ROUND(LU_InkPaper[[#This Row],[Page thickness (Inches)]]*cm, 5) -> 0.00596 | N4: Bleed W | O4: Bleed H | R4: 26 | S4: 0.375 | T4: 0.25 | U4: 0.375 | V4: 9.525 | W4: 9,525 mm (0,375") | Y4: 12,85 x 19,84 cm (5,06" x 7,81") | Z4: 5.06 | AA4: 7.81 | AB4: 5.06" x 7.81" | AC4: 12.85 | AD4: 19.84 | AE4: (12.85 x 19.84 cm) | AF4: 12,85 x 19,84 cm (5,06" x 7,81") | AG4: =LU_TrimSizes[[#This Row],[Trim Width (cm)]]&" cm ("&LU_TrimSizes[[#This Row],[Trim Width (in)]]&""")" -> 12,85 cm (5,06") | AH4: =LU_TrimSizes[[#This Row],[Trim Height (cm)]]&" cm ("&LU_TrimSizes[[#This Row],[Trim Height (in)]]&""")" -> 19,84 cm (7,81") | AI4: =ROUND(LU_TrimSizes[[#This Row],[Trim Width (in)]]+0.125, 5)&"""" -> 5,185" | AJ4: =ROUND(LU_TrimSizes[[#This Row],[Trim Height (in)]]+0.25, 5)&"""" -> 8,06" | AK4: =LU_TrimSizes[[#This Row],[Trim W Bleed (cm)]]&" ("&LU_TrimSizes[[#This Row],[Trim W Bleed (in)]]&")" -> 13,1699 cm (5,185") | AL4: =LU_TrimSizes[[#This Row],[Trim H Bleed (cm)]]&" ("&LU_TrimSizes[[#This Row],[Trim H Bleed (in)]]&")" -> 20,4724 cm (8,06") | AM4: =ROUND(LU_TrimSizes[[#This Row],[Trim Width (in)]]*cm+blcmw, 5)&" cm" -> 13,1699 cm | AN4: =ROUND(LU_TrimSizes[[#This Row],[Trim Height (in)]]*cm+blcmh, 5)&" cm" -> 20,4724 cm | AO4: =LU_TrimSizes[[#This Row],[Trim W Bleed (in)]]&" x "&LU_TrimSizes[[#This Row],[Trim H Bleed (in)]] -> 5,185" x 8,06" | AP4: =LU_TrimSizes[[#This Row],[Trim W Bleed (cm)]]&" x "&LU_TrimSizes[[#This Row],[Trim H Bleed (cm)]] -> 13,1699 cm x 20,4724 cm | AQ4: =ROUND(LU_TrimSizes[[#This Row],[Trim Width (in)]]-GutterINmath-MarginOinMath, 5) -> 4.435 | AR4: =ROUND(LU_TrimSizes[[#This Row],[Trim Width (cm)]]-GutterCMmath-MarginOcmMath, 5) -> 11.2625 | AS4: =LU_TrimSizes[[#This Row],[Manuscript Safe Zone W cm]]&" cm ("&LU_TrimSizes[[#This Row],[Manuscript Safe Zone W in]]&""")" -> 11,2625 cm (4,435") | AT4: =ROUND(LU_TrimSizes[[#This Row],[Trim Height (in)]]-MarginOinMath-MarginOinMath, 5) -> 7.31 | AU4: =ROUND(LU_TrimSizes[[#This Row],[Trim Height (cm)]]-MarginOcmMath-MarginOcmMath, 5) -> 18.57 | AV4: =LU_TrimSizes[[#This Row],[Manuscript Safe Zone H (cm)]]&" cm ("&LU_TrimSizes[[#This Row],[Manuscript Safe Zone H in]]&""")" -> 18,57 cm (7,31") | AW4: =LU_TrimSizes[[#This Row],[Manuscript Safe Zone W in]]&""" x "&LU_TrimSizes[[#This Row],[Manuscript Safe Zone H in]]&"""" -> 4,435" x 7,31" | AX4: =LU_TrimSizes[[#This Row],[Manuscript Safe Zone W cm]]&" cm x "&LU_TrimSizes[[#This Row],[Manuscript Safe Zone H (cm)]]&" cm" -> 11,2625 cm x 18,57 cm | AY4: =ROUND(CBleedLin+LU_TrimSizes[[#This Row],[Trim Width (in)]]+SpineWidthInMath+LU_TrimSizes[[#This Row],[Trim Width (in)]]+CBleedRIn, 5) -> 11.12667 | AZ4: =ROUND(LU_TrimSizes[[#This Row],[Trim Width (cm)]]+CBleedLcm+SpineWidthCmMath+CBleedRcm+LU_TrimSizes[[#This Row],[Trim Width (cm)]], 5) -> 28.25692 | BA4: =LU_TrimSizes[[#This Row],[Cover W (cm)]]&" cm ("&LU_TrimSizes[[#This Row],[Cover W In]]&" cm)" -> 28,25692 cm (11,12667 cm) | BB4: =ROUND(CBleedTIn+LU_TrimSizes[[#This Row],[Trim Height (in)]]+CBleedBIn, 5) -> 8.06 | BC4: =ROUND(CBleedTcm+LU_TrimSizes[[#This Row],[Trim Height (cm)]]+CBleedBcm, 5) -> 20.475 | BD4: =LU_TrimSizes[[#This Row],[Cover Height CM]]&" cm ("&LU_TrimSizes[[#This Row],[Cover Height In]]&""")" -> 20,475 cm (8,06") | BE4: =LU_TrimSizes[[#This Row],[Cover W In]]&""" x "&LU_TrimSizes[[#This Row],[Cover Height In]]&"""" -> 11,12667" x 8,06" | BF4: =LU_TrimSizes[[#This Row],[Cover W (cm)]]&" cm x "&LU_TrimSizes[[#This Row],[Cover Height CM]]&" cm" -> 28,25692 cm x 20,475 cm | BG4: =ROUND(LU_TrimSizes[[#This Row],[Cover W In]]-0.5, 5) -> 10.62667 | BH4: =ROUND(LU_TrimSizes[[#This Row],[Cover W (cm)]]-1.27, 5) -> 26.98692 | BI4: =LU_TrimSizes[[#This Row],[Cover Safe Zone W cm]]&" cm ("&LU_TrimSizes[[#This Row],[Cover Safe Zone W (in)]]&""")" -> 26,98692 cm (10,62667") | BJ4: =LU_TrimSizes[[#This Row],[Cover Safe Zone H cm]]&" cm ("&LU_TrimSizes[[#This Row],[Cover Safe Zone H in]]&""")" -> 19,205 cm (7,56") | BK4: =ROUND(LU_TrimSizes[[#This Row],[Cover Height In]]-0.5, 5) -> 7.56 | BL4: =ROUND(LU_TrimSizes[[#This Row],[Cover Height CM]]-1.27, 5) -> 19.205 | BM4: =LU_TrimSizes[[#This Row],[Cover Safe Zone W (in)]]&""" x "&LU_TrimSizes[[#This Row],[Cover Safe Zone H in]]&"""" -> 10,62667" x 7,56" | BN4: =LU_TrimSizes[[#This Row],[Cover Safe Zone W cm]]&" cm x "&LU_TrimSizes[[#This Row],[Cover Safe Zone H cm]]&" cm" -> 26,98692 cm x 19,205 cm | BO4: 776 | BP4: 828 | BQ4: 828
A5: 3 | B5: Manuscript | C5: No Bleed Manuscript Layout | D5: No Bleed Manuscript Size | M5: In | N5: 0.125 | O5: 0.25 | R5: 27 | S5: 0.375 | T5: 0.25 | U5: 0.375 | V5: 9.525 | W5: 9,525 mm (0,375") | Y5: 13,34 x 20,32 cm (5,25" x 8") | Z5: 5.25 | AA5: 8 | AB5: 5.25" x 8" | AC5: 13.34 | AD5: 20.32 | AE5: (13.34 x 20.32 cm) | AF5: 13,34 x 20,32 cm (5,25" x 8") | AG5: =LU_TrimSizes[[#This Row],[Trim Width (cm)]]&" cm ("&LU_TrimSizes[[#This Row],[Trim Width (in)]]&""")" -> 13,34 cm (5,25") | AH5: =LU_TrimSizes[[#This Row],[Trim Height (cm)]]&" cm ("&LU_TrimSizes[[#This Row],[Trim Height (in)]]&""")" -> 20,32 cm (8") | AI5: =ROUND(LU_TrimSizes[[#This Row],[Trim Width (in)]]+0.125, 5)&"""" -> 5,375" | AJ5: =ROUND(LU_TrimSizes[[#This Row],[Trim Height (in)]]+0.25, 5)&"""" -> 8,25" | AK5: =LU_TrimSizes[[#This Row],[Trim W Bleed (cm)]]&" ("&LU_TrimSizes[[#This Row],[Trim W Bleed (in)]]&")" -> 13,6525 cm (5,375") | AL5: =LU_TrimSizes[[#This Row],[Trim H Bleed (cm)]]&" ("&LU_TrimSizes[[#This Row],[Trim H Bleed (in)]]&")" -> 20,955 cm (8,25") | AM5: =ROUND(LU_TrimSizes[[#This Row],[Trim Width (in)]]*cm+blcmw, 5)&" cm" -> 13,6525 cm | AN5: =ROUND(LU_TrimSizes[[#This Row],[Trim Height (in)]]*cm+blcmh, 5)&" cm" -> 20,955 cm | AO5: =LU_TrimSizes[[#This Row],[Trim W Bleed (in)]]&" x "&LU_TrimSizes[[#This Row],[Trim H Bleed (in)]] -> 5,375" x 8,25" | AP5: =LU_TrimSizes[[#This Row],[Trim W Bleed (cm)]]&" x "&LU_TrimSizes[[#This Row],[Trim H Bleed (cm)]] -> 13,6525 cm x 20,955 cm | AQ5: =ROUND(LU_TrimSizes[[#This Row],[Trim Width (in)]]-GutterINmath-MarginOinMath, 5) -> 4.625 | AR5: =ROUND(LU_TrimSizes[[#This Row],[Trim Width (cm)]]-GutterCMmath-MarginOcmMath, 5) -> 11.7525 | AS5: =LU_TrimSizes[[#This Row],[Manuscript Safe Zone W cm]]&" cm ("&LU_TrimSizes[[#This Row],[Manuscript Safe Zone W in]]&""")" -> 11,7525 cm (4,625") | AT5: =ROUND(LU_TrimSizes[[#This Row],[Trim Height (in)]]-MarginOinMath-MarginOinMath, 5) -> 7.5 | AU5: =ROUND(LU_TrimSizes[[#This Row],[Trim Height (cm)]]-MarginOcmMath-MarginOcmMath, 5) -> 19.05 | AV5: =LU_TrimSizes[[#This Row],[Manuscript Safe Zone H (cm)]]&" cm ("&LU_TrimSizes[[#This Row],[Manuscript Safe Zone H in]]&""")" -> 19,05 cm (7,5") | AW5: =LU_TrimSizes[[#This Row],[Manuscript Safe Zone W in]]&""" x "&LU_TrimSizes[[#This Row],[Manuscript Safe Zone H in]]&"""" -> 4,625" x 7,5" | AX5: =LU_TrimSizes[[#This Row],[Manuscript Safe Zone W cm]]&" cm x "&LU_TrimSizes[[#This Row],[Manuscript Safe Zone H (cm)]]&" cm" -> 11,7525 cm x 19,05 cm | AY5: =ROUND(CBleedLin+LU_TrimSizes[[#This Row],[Trim Width (in)]]+SpineWidthInMath+LU_TrimSizes[[#This Row],[Trim Width (in)]]+CBleedRIn, 5) -> 11.50667 | AZ5: =ROUND(LU_TrimSizes[[#This Row],[Trim Width (cm)]]+CBleedLcm+SpineWidthCmMath+CBleedRcm+LU_TrimSizes[[#This Row],[Trim Width (cm)]], 5) -> 29.23692 | BA5: =LU_TrimSizes[[#This Row],[Cover W (cm)]]&" cm ("&LU_TrimSizes[[#This Row],[Cover W In]]&" cm)" -> 29,23692 cm (11,50667 cm) | BB5: =ROUND(CBleedTIn+LU_TrimSizes[[#This Row],[Trim Height (in)]]+CBleedBIn, 5) -> 8.25 | BC5: =ROUND(CBleedTcm+LU_TrimSizes[[#This Row],[Trim Height (cm)]]+CBleedBcm, 5) -> 20.955 | BD5: =LU_TrimSizes[[#This Row],[Cover Height CM]]&" cm ("&LU_TrimSizes[[#This Row],[Cover Height In]]&""")" -> 20,955 cm (8,25") | BE5: =LU_TrimSizes[[#This Row],[Cover W In]]&""" x "&LU_TrimSizes[[#This Row],[Cover Height In]]&"""" -> 11,50667" x 8,25" | BF5: =LU_TrimSizes[[#This Row],[Cover W (cm)]]&" cm x "&LU_TrimSizes[[#This Row],[Cover Height CM]]&" cm" -> 29,23692 cm x 20,955 cm | BG5: =ROUND(LU_TrimSizes[[#This Row],[Cover W In]]-0.5, 5) -> 11.00667 | BH5: =ROUND(LU_TrimSizes[[#This Row],[Cover W (cm)]]-1.27, 5) -> 27.96692 | BI5: =LU_TrimSizes[[#This Row],[Cover Safe Zone W cm]]&" cm ("&LU_TrimSizes[[#This Row],[Cover Safe Zone W (in)]]&""")" -> 27,96692 cm (11,00667") | BJ5: =LU_TrimSizes[[#This Row],[Cover Safe Zone H cm]]&" cm ("&LU_TrimSizes[[#This Row],[Cover Safe Zone H in]]&""")" -> 19,685 cm (7,75") | BK5: =ROUND(LU_TrimSizes[[#This Row],[Cover Height In]]-0.5, 5) -> 7.75 | BL5: =ROUND(LU_TrimSizes[[#This Row],[Cover Height CM]]-1.27, 5) -> 19.685 | BM5: =LU_TrimSizes[[#This Row],[Cover Safe Zone W (in)]]&""" x "&LU_TrimSizes[[#This Row],[Cover Safe Zone H in]]&"""" -> 11,00667" x 7,75" | BN5: =LU_TrimSizes[[#This Row],[Cover Safe Zone W cm]]&" cm x "&LU_TrimSizes[[#This Row],[Cover Safe Zone H cm]]&" cm" -> 27,96692 cm x 19,685 cm | BO5: 776 | BP5: 828 | BQ5: 828
A6: 4 | B6: Manuscript | C6: No Bleed Manuscript Layout | D6: Trim Size | E6: =ITrimSize | M6: cm | N6: =N5*cm -> 0.3175 | O6: =O5*cm -> 0.635 | R6: 28 | S6: 0.375 | T6: 0.25 | U6: 0.375 | V6: 9.525 | W6: 9,525 mm (0,375") | Y6: 13,97 x 21,59 cm (5,5" x 8,5") | Z6: 5.5 | AA6: 8.5 | AB6: 5.5" x 8.5" | AC6: 13.97 | AD6: 21.59 | AE6: (13.97 x 21.59 cm) | AF6: 13,97 x 21,59 cm (5,5" x 8,5") | AG6: =LU_TrimSizes[[#This Row],[Trim Width (cm)]]&" cm ("&LU_TrimSizes[[#This Row],[Trim Width (in)]]&""")" -> 13,97 cm (5,5") | AH6: =LU_TrimSizes[[#This Row],[Trim Height (cm)]]&" cm ("&LU_TrimSizes[[#This Row],[Trim Height (in)]]&""")" -> 21,59 cm (8,5") | AI6: =ROUND(LU_TrimSizes[[#This Row],[Trim Width (in)]]+0.125, 5)&"""" -> 5,625" | AJ6: =ROUND(LU_TrimSizes[[#This Row],[Trim Height (in)]]+0.25, 5)&"""" -> 8,75" | AK6: =LU_TrimSizes[[#This Row],[Trim W Bleed (cm)]]&" ("&LU_TrimSizes[[#This Row],[Trim W Bleed (in)]]&")" -> 14,2875 cm (5,625") | AL6: =LU_TrimSizes[[#This Row],[Trim H Bleed (cm)]]&" ("&LU_TrimSizes[[#This Row],[Trim H Bleed (in)]]&")" -> 22,225 cm (8,75") | AM6: =ROUND(LU_TrimSizes[[#This Row],[Trim Width (in)]]*cm+blcmw, 5)&" cm" -> 14,2875 cm | AN6: =ROUND(LU_TrimSizes[[#This Row],[Trim Height (in)]]*cm+blcmh, 5)&" cm" -> 22,225 cm | AO6: =LU_TrimSizes[[#This Row],[Trim W Bleed (in)]]&" x "&LU_TrimSizes[[#This Row],[Trim H Bleed (in)]] -> 5,625" x 8,75" | AP6: =LU_TrimSizes[[#This Row],[Trim W Bleed (cm)]]&" x "&LU_TrimSizes[[#This Row],[Trim H Bleed (cm)]] -> 14,2875 cm x 22,225 cm | AQ6: =ROUND(LU_TrimSizes[[#This Row],[Trim Width (in)]]-GutterINmath-MarginOinMath, 5) -> 4.875 | AR6: =ROUND(LU_TrimSizes[[#This Row],[Trim Width (cm)]]-GutterCMmath-MarginOcmMath, 5) -> 12.3825 | AS6: =LU_TrimSizes[[#This Row],[Manuscript Safe Zone W cm]]&" cm ("&LU_TrimSizes[[#This Row],[Manuscript Safe Zone W in]]&""")" -> 12,3825 cm (4,875") | AT6: =ROUND(LU_TrimSizes[[#This Row],[Trim Height (in)]]-MarginOinMath-MarginOinMath, 5) -> 8 | AU6: =ROUND(LU_TrimSizes[[#This Row],[Trim Height (cm)]]-MarginOcmMath-MarginOcmMath, 5) -> 20.32 | AV6: =LU_TrimSizes[[#This Row],[Manuscript Safe Zone H (cm)]]&" cm ("&LU_TrimSizes[[#This Row],[Manuscript Safe Zone H in]]&""")" -> 20,32 cm (8") | AW6: =LU_TrimSizes[[#This Row],[Manuscript Safe Zone W in]]&""" x "&LU_TrimSizes[[#This Row],[Manuscript Safe Zone H in]]&"""" -> 4,875" x 8" | AX6: =LU_TrimSizes[[#This Row],[Manuscript Safe Zone W cm]]&" cm x "&LU_TrimSizes[[#This Row],[Manuscript Safe Zone H (cm)]]&" cm" -> 12,3825 cm x 20,32 cm | AY6: =ROUND(CBleedLin+LU_TrimSizes[[#This Row],[Trim Width (in)]]+SpineWidthInMath+LU_TrimSizes[[#This Row],[Trim Width (in)]]+CBleedRIn, 5) -> 12.00667 | AZ6: =ROUND(LU_TrimSizes[[#This Row],[Trim Width (cm)]]+CBleedLcm+SpineWidthCmMath+CBleedRcm+LU_TrimSizes[[#This Row],[Trim Width (cm)]], 5) -> 30.49692 | BA6: =LU_TrimSizes[[#This Row],[Cover W (cm)]]&" cm ("&LU_TrimSizes[[#This Row],[Cover W In]]&" cm)" -> 30,49692 cm (12,00667 cm) | BB6: =ROUND(CBleedTIn+LU_TrimSizes[[#This Row],[Trim Height (in)]]+CBleedBIn, 5) -> 8.75 | BC6: =ROUND(CBleedTcm+LU_TrimSizes[[#This Row],[Trim Height (cm)]]+CBleedBcm, 5) -> 22.225 | BD6: =LU_TrimSizes[[#This Row],[Cover Height CM]]&" cm ("&LU_TrimSizes[[#This Row],[Cover Height In]]&""")" -> 22,225 cm (8,75") | BE6: =LU_TrimSizes[[#This Row],[Cover W In]]&""" x "&LU_TrimSizes[[#This Row],[Cover Height In]]&"""" -> 12,00667" x 8,75" | BF6: =LU_TrimSizes[[#This Row],[Cover W (cm)]]&" cm x "&LU_TrimSizes[[#This Row],[Cover Height CM]]&" cm" -> 30,49692 cm x 22,225 cm | BG6: =ROUND(LU_TrimSizes[[#This Row],[Cover W In]]-0.5, 5) -> 11.50667 | BH6: =ROUND(LU_TrimSizes[[#This Row],[Cover W (cm)]]-1.27, 5) -> 29.22692 | BI6: =LU_TrimSizes[[#This Row],[Cover Safe Zone W cm]]&" cm ("&LU_TrimSizes[[#This Row],[Cover Safe Zone W (in)]]&""")" -> 29,22692 cm (11,50667") | BJ6: =LU_TrimSizes[[#This Row],[Cover Safe Zone H cm]]&" cm ("&LU_TrimSizes[[#This Row],[Cover Safe Zone H in]]&""")" -> 20,955 cm (8,25") | BK6: =ROUND(LU_TrimSizes[[#This Row],[Cover Height In]]-0.5, 5) -> 8.25 | BL6: =ROUND(LU_TrimSizes[[#This Row],[Cover Height CM]]-1.27, 5) -> 20.955 | BM6: =LU_TrimSizes[[#This Row],[Cover Safe Zone W (in)]]&""" x "&LU_TrimSizes[[#This Row],[Cover Safe Zone H in]]&"""" -> 11,50667" x 8,25" | BN6: =LU_TrimSizes[[#This Row],[Cover Safe Zone W cm]]&" cm x "&LU_TrimSizes[[#This Row],[Cover Safe Zone H cm]]&" cm" -> 29,22692 cm x 20,955 cm | BO6: 776 | BP6: 828 | BQ6: 828
A7: 5 | B7: Manuscript | C7: No Bleed Manuscript Layout | D7: Page Size | E7: =SmnbPage | G7: Cover Bleed Area | H7: Cover Bleed (In) | I7: Cover Bleed (mm) | J7: Cover Bleed (cm) | M7: mm | N7: =N5*mm -> 3.175 | O7: =O5*mm -> 6.35 | R7: 29 | S7: 0.375 | T7: 0.25 | U7: 0.375 | V7: 9.525 | W7: 9,525 mm (0,375") | Y7: 15,24 x 22,86 cm (6" x 9") | Z7: 6 | AA7: 9 | AB7: 6" x 9" | AC7: 15.24 | AD7: 22.86 | AE7: (15.24 x 22.86 cm) | AF7: 15,24 x 22,86 cm (6" x 9") | AG7: =LU_TrimSizes[[#This Row],[Trim Width (cm)]]&" cm ("&LU_TrimSizes[[#This Row],[Trim Width (in)]]&""")" -> 15,24 cm (6") | AH7: =LU_TrimSizes[[#This Row],[Trim Height (cm)]]&" cm ("&LU_TrimSizes[[#This Row],[Trim Height (in)]]&""")" -> 22,86 cm (9") | AI7: =ROUND(LU_TrimSizes[[#This Row],[Trim Width (in)]]+0.125, 5)&"""" -> 6,125" | AJ7: =ROUND(LU_TrimSizes[[#This Row],[Trim Height (in)]]+0.25, 5)&"""" -> 9,25" | AK7: =LU_TrimSizes[[#This Row],[Trim W Bleed (cm)]]&" ("&LU_TrimSizes[[#This Row],[Trim W Bleed (in)]]&")" -> 15,5575 cm (6,125") | AL7: =LU_TrimSizes[[#This Row],[Trim H Bleed (cm)]]&" ("&LU_TrimSizes[[#This Row],[Trim H Bleed (in)]]&")" -> 23,495 cm (9,25") | AM7: =ROUND(LU_TrimSizes[[#This Row],[Trim Width (in)]]*cm+blcmw, 5)&" cm" -> 15,5575 cm | AN7: =ROUND(LU_TrimSizes[[#This Row],[Trim Height (in)]]*cm+blcmh, 5)&" cm" -> 23,495 cm | AO7: =LU_TrimSizes[[#This Row],[Trim W Bleed (in)]]&" x "&LU_TrimSizes[[#This Row],[Trim H Bleed (in)]] -> 6,125" x 9,25" | AP7: =LU_TrimSizes[[#This Row],[Trim W Bleed (cm)]]&" x "&LU_TrimSizes[[#This Row],[Trim H Bleed (cm)]] -> 15,5575 cm x 23,495 cm | AQ7: =ROUND(LU_TrimSizes[[#This Row],[Trim Width (in)]]-GutterINmath-MarginOinMath, 5) -> 5.375 | AR7: =ROUND(LU_TrimSizes[[#This Row],[Trim Width (cm)]]-GutterCMmath-MarginOcmMath, 5) -> 13.6525 | AS7: =LU_TrimSizes[[#This Row],[Manuscript Safe Zone W cm]]&" cm ("&LU_TrimSizes[[#This Row],[Manuscript Safe Zone W in]]&""")" -> 13,6525 cm (5,375") | AT7: =ROUND(LU_TrimSizes[[#This Row],[Trim Height (in)]]-MarginOinMath-MarginOinMath, 5) -> 8.5 | AU7: =ROUND(LU_TrimSizes[[#This Row],[Trim Height (cm)]]-MarginOcmMath-MarginOcmMath, 5) -> 21.59 | AV7: =LU_TrimSizes[[#This Row],[Manuscript Safe Zone H (cm)]]&" cm ("&LU_TrimSizes[[#This Row],[Manuscript Safe Zone H in]]&""")" -> 21,59 cm (8,5") | AW7: =LU_TrimSizes[[#This Row],[Manuscript Safe Zone W in]]&""" x "&LU_TrimSizes[[#This Row],[Manuscript Safe Zone H in]]&"""" -> 5,375" x 8,5" | AX7: =LU_TrimSizes[[#This Row],[Manuscript Safe Zone W cm]]&" cm x "&LU_TrimSizes[[#This Row],[Manuscript Safe Zone H (cm)]]&" cm" -> 13,6525 cm x 21,59 cm | AY7: =ROUND(CBleedLin+LU_TrimSizes[[#This Row],[Trim Width (in)]]+SpineWidthInMath+LU_TrimSizes[[#This Row],[Trim Width (in)]]+CBleedRIn, 5) -> 13.00667 | AZ7: =ROUND(LU_TrimSizes[[#This Row],[Trim Width (cm)]]+CBleedLcm+SpineWidthCmMath+CBleedRcm+LU_TrimSizes[[#This Row],[Trim Width (cm)]], 5) -> 33.03692 | BA7: =LU_TrimSizes[[#This Row],[Cover W (cm)]]&" cm ("&LU_TrimSizes[[#This Row],[Cover W In]]&" cm)" -> 33,03692 cm (13,00667 cm) | BB7: =ROUND(CBleedTIn+LU_TrimSizes[[#This Row],[Trim Height (in)]]+CBleedBIn, 5) -> 9.25 | BC7: =ROUND(CBleedTcm+LU_TrimSizes[[#This Row],[Trim Height (cm)]]+CBleedBcm, 5) -> 23.495 | BD7: =LU_TrimSizes[[#This Row],[Cover Height CM]]&" cm ("&LU_TrimSizes[[#This Row],[Cover Height In]]&""")" -> 23,495 cm (9,25") | BE7: =LU_TrimSizes[[#This Row],[Cover W In]]&""" x "&LU_TrimSizes[[#This Row],[Cover Height In]]&"""" -> 13,00667" x 9,25" | BF7: =LU_TrimSizes[[#This Row],[Cover W (cm)]]&" cm x "&LU_TrimSizes[[#This Row],[Cover Height CM]]&" cm" -> 33,03692 cm x 23,495 cm | BG7: =ROUND(LU_TrimSizes[[#This Row],[Cover W In]]-0.5, 5) -> 12.50667 | BH7: =ROUND(LU_TrimSizes[[#This Row],[Cover W (cm)]]-1.27, 5) -> 31.76692 | BI7: =LU_TrimSizes[[#This Row],[Cover Safe Zone W cm]]&" cm ("&LU_TrimSizes[[#This Row],[Cover Safe Zone W (in)]]&""")" -> 31,76692 cm (12,50667") | BJ7: =LU_TrimSizes[[#This Row],[Cover Safe Zone H cm]]&" cm ("&LU_TrimSizes[[#This Row],[Cover Safe Zone H in]]&""")" -> 22,225 cm (8,75") | BK7: =ROUND(LU_TrimSizes[[#This Row],[Cover Height In]]-0.5, 5) -> 8.75 | BL7: =ROUND(LU_TrimSizes[[#This Row],[Cover Height CM]]-1.27, 5) -> 22.225 | BM7: =LU_TrimSizes[[#This Row],[Cover Safe Zone W (in)]]&""" x "&LU_TrimSizes[[#This Row],[Cover Safe Zone H in]]&"""" -> 12,50667" x 8,75" | BN7: =LU_TrimSizes[[#This Row],[Cover Safe Zone W cm]]&" cm x "&LU_TrimSizes[[#This Row],[Cover Safe Zone H cm]]&" cm" -> 31,76692 cm x 22,225 cm | BO7: 776 | BP7: 828 | BQ7: 828
A8: 6 | B8: Manuscript | C8: No Bleed Manuscript Layout | D8: Safe Zone Size | E8: =SmSafeZone | G8: Cover Bleed L | H8: 0.125 | I8: =ROUND(LU_CoverBleed[[#This Row],[Cover Bleed (In)]]*mm, 5) -> 3.175 | J8: =ROUND(LU_CoverBleed[[#This Row],[Cover Bleed (In)]]*cm, 5) -> 0.3175 | M8: mBleedName | R8: 30 | S8: 0.375 | T8: 0.25 | U8: 0.375 | V8: 9.525 | W8: 9,525 mm (0,375") | Y8: 15,6 x 23,39 cm (6,14" x 9,21") | Z8: 6.14 | AA8: 9.21 | AB8: 6.14" x 9.21" | AC8: 15.6 | AD8: 23.39 | AE8: (15.6 x 23.39 cm) | AF8: 15,6 x 23,39 cm (6,14" x 9,21") | AG8: =LU_TrimSizes[[#This Row],[Trim Width (cm)]]&" cm ("&LU_TrimSizes[[#This Row],[Trim Width (in)]]&""")" -> 15,6 cm (6,14") | AH8: =LU_TrimSizes[[#This Row],[Trim Height (cm)]]&" cm ("&LU_TrimSizes[[#This Row],[Trim Height (in)]]&""")" -> 23,39 cm (9,21") | AI8: =ROUND(LU_TrimSizes[[#This Row],[Trim Width (in)]]+0.125, 5)&"""" -> 6,265" | AJ8: =ROUND(LU_TrimSizes[[#This Row],[Trim Height (in)]]+0.25, 5)&"""" -> 9,46" | AK8: =LU_TrimSizes[[#This Row],[Trim W Bleed (cm)]]&" ("&LU_TrimSizes[[#This Row],[Trim W Bleed (in)]]&")" -> 15,9131 cm (6,265") | AL8: =LU_TrimSizes[[#This Row],[Trim H Bleed (cm)]]&" ("&LU_TrimSizes[[#This Row],[Trim H Bleed (in)]]&")" -> 24,0284 cm (9,46") | AM8: =ROUND(LU_TrimSizes[[#This Row],[Trim Width (in)]]*cm+blcmw, 5)&" cm" -> 15,9131 cm | AN8: =ROUND(LU_TrimSizes[[#This Row],[Trim Height (in)]]*cm+blcmh, 5)&" cm" -> 24,0284 cm | AO8: =LU_TrimSizes[[#This Row],[Trim W Bleed (in)]]&" x "&LU_TrimSizes[[#This Row],[Trim H Bleed (in)]] -> 6,265" x 9,46" | AP8: =LU_TrimSizes[[#This Row],[Trim W Bleed (cm)]]&" x "&LU_TrimSizes[[#This Row],[Trim H Bleed (cm)]] -> 15,9131 cm x 24,0284 cm | AQ8: =ROUND(LU_TrimSizes[[#This Row],[Trim Width (in)]]-GutterINmath-MarginOinMath, 5) -> 5.515 | AR8: =ROUND(LU_TrimSizes[[#This Row],[Trim Width (cm)]]-GutterCMmath-MarginOcmMath, 5) -> 14.0125 | AS8: =LU_TrimSizes[[#This Row],[Manuscript Safe Zone W cm]]&" cm ("&LU_TrimSizes[[#This Row],[Manuscript Safe Zone W in]]&""")" -> 14,0125 cm (5,515") | AT8: =ROUND(LU_TrimSizes[[#This Row],[Trim Height (in)]]-MarginOinMath-MarginOinMath, 5) -> 8.71 | AU8: =ROUND(LU_TrimSizes[[#This Row],[Trim Height (cm)]]-MarginOcmMath-MarginOcmMath, 5) -> 22.12 | AV8: =LU_TrimSizes[[#This Row],[Manuscript Safe Zone H (cm)]]&" cm ("&LU_TrimSizes[[#This Row],[Manuscript Safe Zone H in]]&""")" -> 22,12 cm (8,71") | AW8: =LU_TrimSizes[[#This Row],[Manuscript Safe Zone W in]]&""" x "&LU_TrimSizes[[#This Row],[Manuscript Safe Zone H in]]&"""" -> 5,515" x 8,71" | AX8: =LU_TrimSizes[[#This Row],[Manuscript Safe Zone W cm]]&" cm x "&LU_TrimSizes[[#This Row],[Manuscript Safe Zone H (cm)]]&" cm" -> 14,0125 cm x 22,12 cm | AY8: =ROUND(CBleedLin+LU_TrimSizes[[#This Row],[Trim Width (in)]]+SpineWidthInMath+LU_TrimSizes[[#This Row],[Trim Width (in)]]+CBleedRIn, 5) -> 13.28667 | AZ8: =ROUND(LU_TrimSizes[[#This Row],[Trim Width (cm)]]+CBleedLcm+SpineWidthCmMath+CBleedRcm+LU_TrimSizes[[#This Row],[Trim Width (cm)]], 5) -> 33.75692 | BA8: =LU_TrimSizes[[#This Row],[Cover W (cm)]]&" cm ("&LU_TrimSizes[[#This Row],[Cover W In]]&" cm)" -> 33,75692 cm (13,28667 cm) | BB8: =ROUND(CBleedTIn+LU_TrimSizes[[#This Row],[Trim Height (in)]]+CBleedBIn, 5) -> 9.46 | BC8: =ROUND(CBleedTcm+LU_TrimSizes[[#This Row],[Trim Height (cm)]]+CBleedBcm, 5) -> 24.025 | BD8: =LU_TrimSizes[[#This Row],[Cover Height CM]]&" cm ("&LU_TrimSizes[[#This Row],[Cover Height In]]&""")" -> 24,025 cm (9,46") | BE8: =LU_TrimSizes[[#This Row],[Cover W In]]&""" x "&LU_TrimSizes[[#This Row],[Cover Height In]]&"""" -> 13,28667" x 9,46" | BF8: =LU_TrimSizes[[#This Row],[Cover W (cm)]]&" cm x "&LU_TrimSizes[[#This Row],[Cover Height CM]]&" cm" -> 33,75692 cm x 24,025 cm | BG8: =ROUND(LU_TrimSizes[[#This Row],[Cover W In]]-0.5, 5) -> 12.78667 | BH8: =ROUND(LU_TrimSizes[[#This Row],[Cover W (cm)]]-1.27, 5) -> 32.48692 | BI8: =LU_TrimSizes[[#This Row],[Cover Safe Zone W cm]]&" cm ("&LU_TrimSizes[[#This Row],[Cover Safe Zone W (in)]]&""")" -> 32,48692 cm (12,78667") | BJ8: =LU_TrimSizes[[#This Row],[Cover Safe Zone H cm]]&" cm ("&LU_TrimSizes[[#This Row],[Cover Safe Zone H in]]&""")" -> 22,755 cm (8,96") | BK8: =ROUND(LU_TrimSizes[[#This Row],[Cover Height In]]-0.5, 5) -> 8.96 | BL8: =ROUND(LU_TrimSizes[[#This Row],[Cover Height CM]]-1.27, 5) -> 22.755 | BM8: =LU_TrimSizes[[#This Row],[Cover Safe Zone W (in)]]&""" x "&LU_TrimSizes[[#This Row],[Cover Safe Zone H in]]&"""" -> 12,78667" x 8,96" | BN8: =LU_TrimSizes[[#This Row],[Cover Safe Zone W cm]]&" cm x "&LU_TrimSizes[[#This Row],[Cover Safe Zone H cm]]&" cm" -> 32,48692 cm x 22,755 cm | BO8: 776 | BP8: 828 | BQ8: 828
A9: 7 | B9: Manuscript | C9: Bleed Manuscript Layout | D9: Manuscript Bleed Size | E9: =CmbBleed | G9: Cover Bleed R | H9: 0.125 | I9: =ROUND(LU_CoverBleed[[#This Row],[Cover Bleed (In)]]*mm, 5) -> 3.175 | J9: =ROUND(LU_CoverBleed[[#This Row],[Cover Bleed (In)]]*cm, 5) -> 0.3175 | R9: 31 | S9: 0.375 | T9: 0.25 | U9: 0.375 | V9: 9.525 | W9: 9,525 mm (0,375") | Y9: 16,99 x 24,41 cm (6,69" x 9,61") | Z9: 6.69 | AA9: 9.61 | AB9: 6.69" x 9.61" | AC9: 16.99 | AD9: 24.41 | AE9: (16.99 x 24.41 cm) | AF9: 16,99 x 24,41 cm (6,69" x 9,61") | AG9: =LU_TrimSizes[[#This Row],[Trim Width (cm)]]&" cm ("&LU_TrimSizes[[#This Row],[Trim Width (in)]]&""")" -> 16,99 cm (6,69") | AH9: =LU_TrimSizes[[#This Row],[Trim Height (cm)]]&" cm ("&LU_TrimSizes[[#This Row],[Trim Height (in)]]&""")" -> 24,41 cm (9,61") | AI9: =ROUND(LU_TrimSizes[[#This Row],[Trim Width (in)]]+0.125, 5)&"""" -> 6,815" | AJ9: =ROUND(LU_TrimSizes[[#This Row],[Trim Height (in)]]+0.25, 5)&"""" -> 9,86" | AK9: =LU_TrimSizes[[#This Row],[Trim W Bleed (cm)]]&" ("&LU_TrimSizes[[#This Row],[Trim W Bleed (in)]]&")" -> 17,3101 cm (6,815") | AL9: =LU_TrimSizes[[#This Row],[Trim H Bleed (cm)]]&" ("&LU_TrimSizes[[#This Row],[Trim H Bleed (in)]]&")" -> 25,0444 cm (9,86") | AM9: =ROUND(LU_TrimSizes[[#This Row],[Trim Width (in)]]*cm+blcmw, 5)&" cm" -> 17,3101 cm | AN9: =ROUND(LU_TrimSizes[[#This Row],[Trim Height (in)]]*cm+blcmh, 5)&" cm" -> 25,0444 cm | AO9: =LU_TrimSizes[[#This Row],[Trim W Bleed (in)]]&" x "&LU_TrimSizes[[#This Row],[Trim H Bleed (in)]] -> 6,815" x 9,86" | AP9: =LU_TrimSizes[[#This Row],[Trim W Bleed (cm)]]&" x "&LU_TrimSizes[[#This Row],[Trim H Bleed (cm)]] -> 17,3101 cm x 25,0444 cm | AQ9: =ROUND(LU_TrimSizes[[#This Row],[Trim Width (in)]]-GutterINmath-MarginOinMath, 5) -> 6.065 | AR9: =ROUND(LU_TrimSizes[[#This Row],[Trim Width (cm)]]-GutterCMmath-MarginOcmMath, 5) -> 15.4025 | AS9: =LU_TrimSizes[[#This Row],[Manuscript Safe Zone W cm]]&" cm ("&LU_TrimSizes[[#This Row],[Manuscript Safe Zone W in]]&""")" -> 15,4025 cm (6,065") | AT9: =ROUND(LU_TrimSizes[[#This Row],[Trim Height (in)]]-MarginOinMath-MarginOinMath, 5) -> 9.11 | AU9: =ROUND(LU_TrimSizes[[#This Row],[Trim Height (cm)]]-MarginOcmMath-MarginOcmMath, 5) -> 23.14 | AV9: =LU_TrimSizes[[#This Row],[Manuscript Safe Zone H (cm)]]&" cm ("&LU_TrimSizes[[#This Row],[Manuscript Safe Zone H in]]&""")" -> 23,14 cm (9,11") | AW9: =LU_TrimSizes[[#This Row],[Manuscript Safe Zone W in]]&""" x "&LU_TrimSizes[[#This Row],[Manuscript Safe Zone H in]]&"""" -> 6,065" x 9,11" | AX9: =LU_TrimSizes[[#This Row],[Manuscript Safe Zone W cm]]&" cm x "&LU_TrimSizes[[#This Row],[Manuscript Safe Zone H (cm)]]&" cm" -> 15,4025 cm x 23,14 cm | AY9: =ROUND(CBleedLin+LU_TrimSizes[[#This Row],[Trim Width (in)]]+SpineWidthInMath+LU_TrimSizes[[#This Row],[Trim Width (in)]]+CBleedRIn, 5) -> 14.38667 | AZ9: =ROUND(LU_TrimSizes[[#This Row],[Trim Width (cm)]]+CBleedLcm+SpineWidthCmMath+CBleedRcm+LU_TrimSizes[[#This Row],[Trim Width (cm)]], 5) -> 36.53692 | BA9: =LU_TrimSizes[[#This Row],[Cover W (cm)]]&" cm ("&LU_TrimSizes[[#This Row],[Cover W In]]&" cm)" -> 36,53692 cm (14,38667 cm) | BB9: =ROUND(CBleedTIn+LU_TrimSizes[[#This Row],[Trim Height (in)]]+CBleedBIn, 5) -> 9.86 | BC9: =ROUND(CBleedTcm+LU_TrimSizes[[#This Row],[Trim Height (cm)]]+CBleedBcm, 5) -> 25.045 | BD9: =LU_TrimSizes[[#This Row],[Cover Height CM]]&" cm ("&LU_TrimSizes[[#This Row],[Cover Height In]]&""")" -> 25,045 cm (9,86") | BE9: =LU_TrimSizes[[#This Row],[Cover W In]]&""" x "&LU_TrimSizes[[#This Row],[Cover Height In]]&"""" -> 14,38667" x 9,86" | BF9: =LU_TrimSizes[[#This Row],[Cover W (cm)]]&" cm x "&LU_TrimSizes[[#This Row],[Cover Height CM]]&" cm" -> 36,53692 cm x 25,045 cm | BG9: =ROUND(LU_TrimSizes[[#This Row],[Cover W In]]-0.5, 5) -> 13.88667 | BH9: =ROUND(LU_TrimSizes[[#This Row],[Cover W (cm)]]-1.27, 5) -> 35.26692 | BI9: =LU_TrimSizes[[#This Row],[Cover Safe Zone W cm]]&" cm ("&LU_TrimSizes[[#This Row],[Cover Safe Zone W (in)]]&""")" -> 35,26692 cm (13,88667") | BJ9: =LU_TrimSizes[[#This Row],[Cover Safe Zone H cm]]&" cm ("&LU_TrimSizes[[#This Row],[Cover Safe Zone H in]]&""")" -> 23,775 cm (9,36") | BK9: =ROUND(LU_TrimSizes[[#This Row],[Cover Height In]]-0.5, 5) -> 9.36 | BL9: =ROUND(LU_TrimSizes[[#This Row],[Cover Height CM]]-1.27, 5) -> 23.775 | BM9: =LU_TrimSizes[[#This Row],[Cover Safe Zone W (in)]]&""" x "&LU_TrimSizes[[#This Row],[Cover Safe Zone H in]]&"""" -> 13,88667" x 9,36" | BN9: =LU_TrimSizes[[#This Row],[Cover Safe Zone W cm]]&" cm x "&LU_TrimSizes[[#This Row],[Cover Safe Zone H cm]]&" cm" -> 35,26692 cm x 23,775 cm | BO9: 776 | BP9: 828 | BQ9: 828
A10: 8 | B10: Manuscript | C10: Bleed Manuscript Layout | D10: Outside Margin | E10: =CmMarginO | G10: Cover Bleed T | H10: 0.125 | I10: =ROUND(LU_CoverBleed[[#This Row],[Cover Bleed (In)]]*mm, 5) -> 3.175 | J10: =ROUND(LU_CoverBleed[[#This Row],[Cover Bleed (In)]]*cm, 5) -> 0.3175 | R10: 32 | S10: 0.375 | T10: 0.25 | U10: 0.375 | V10: 9.525 | W10: 9,525 mm (0,375") | Y10: 17,78 x 25,4 cm (7" x 10") | Z10: 7 | AA10: 10 | AB10: 7" x 10" | AC10: 17.78 | AD10: 25.4 | AE10: (17.78 x 25.4 cm) | AF10: 17,78 x 25,4 cm (7" x 10") | AG10: =LU_TrimSizes[[#This Row],[Trim Width (cm)]]&" cm ("&LU_TrimSizes[[#This Row],[Trim Width (in)]]&""")" -> 17,78 cm (7") | AH10: =LU_TrimSizes[[#This Row],[Trim Height (cm)]]&" cm ("&LU_TrimSizes[[#This Row],[Trim Height (in)]]&""")" -> 25,4 cm (10") | AI10: =ROUND(LU_TrimSizes[[#This Row],[Trim Width (in)]]+0.125, 5)&"""" -> 7,125" | AJ10: =ROUND(LU_TrimSizes[[#This Row],[Trim Height (in)]]+0.25, 5)&"""" -> 10,25" | AK10: =LU_TrimSizes[[#This Row],[Trim W Bleed (cm)]]&" ("&LU_TrimSizes[[#This Row],[Trim W Bleed (in)]]&")" -> 18,0975 cm (7,125") | AL10: =LU_TrimSizes[[#This Row],[Trim H Bleed (cm)]]&" ("&LU_TrimSizes[[#This Row],[Trim H Bleed (in)]]&")" -> 26,035 cm (10,25") | AM10: =ROUND(LU_TrimSizes[[#This Row],[Trim Width (in)]]*cm+blcmw, 5)&" cm" -> 18,0975 cm | AN10: =ROUND(LU_TrimSizes[[#This Row],[Trim Height (in)]]*cm+blcmh, 5)&" cm" -> 26,035 cm | AO10: =LU_TrimSizes[[#This Row],[Trim W Bleed (in)]]&" x "&LU_TrimSizes[[#This Row],[Trim H Bleed (in)]] -> 7,125" x 10,25" | AP10: =LU_TrimSizes[[#This Row],[Trim W Bleed (cm)]]&" x "&LU_TrimSizes[[#This Row],[Trim H Bleed (cm)]] -> 18,0975 cm x 26,035 cm | AQ10: =ROUND(LU_TrimSizes[[#This Row],[Trim Width (in)]]-GutterINmath-MarginOinMath, 5) -> 6.375 | AR10: =ROUND(LU_TrimSizes[[#This Row],[Trim Width (cm)]]-GutterCMmath-MarginOcmMath, 5) -> 16.1925 | AS10: =LU_TrimSizes[[#This Row],[Manuscript Safe Zone W cm]]&" cm ("&LU_TrimSizes[[#This Row],[Manuscript Safe Zone W in]]&""")" -> 16,1925 cm (6,375") | AT10: =ROUND(LU_TrimSizes[[#This Row],[Trim Height (in)]]-MarginOinMath-MarginOinMath, 5) -> 9.5 | AU10: =ROUND(LU_TrimSizes[[#This Row],[Trim Height (cm)]]-MarginOcmMath-MarginOcmMath, 5) -> 24.13 | AV10: =LU_TrimSizes[[#This Row],[Manuscript Safe Zone H (cm)]]&" cm ("&LU_TrimSizes[[#This Row],[Manuscript Safe Zone H in]]&""")" -> 24,13 cm (9,5") | AW10: =LU_TrimSizes[[#This Row],[Manuscript Safe Zone W in]]&""" x "&LU_TrimSizes[[#This Row],[Manuscript Safe Zone H in]]&"""" -> 6,375" x 9,5" | AX10: =LU_TrimSizes[[#This Row],[Manuscript Safe Zone W cm]]&" cm x "&LU_TrimSizes[[#This Row],[Manuscript Safe Zone H (cm)]]&" cm" -> 16,1925 cm x 24,13 cm | AY10: =ROUND(CBleedLin+LU_TrimSizes[[#This Row],[Trim Width (in)]]+SpineWidthInMath+LU_TrimSizes[[#This Row],[Trim Width (in)]]+CBleedRIn, 5) -> 15.00667 | AZ10: =ROUND(LU_TrimSizes[[#This Row],[Trim Width (cm)]]+CBleedLcm+SpineWidthCmMath+CBleedRcm+LU_TrimSizes[[#This Row],[Trim Width (cm)]], 5) -> 38.11692 | BA10: =LU_TrimSizes[[#This Row],[Cover W (cm)]]&" cm ("&LU_TrimSizes[[#This Row],[Cover W In]]&" cm)" -> 38,11692 cm (15,00667 cm) | BB10: =ROUND(CBleedTIn+LU_TrimSizes[[#This Row],[Trim Height (in)]]+CBleedBIn, 5) -> 10.25 | BC10: =ROUND(CBleedTcm+LU_TrimSizes[[#This Row],[Trim Height (cm)]]+CBleedBcm, 5) -> 26.035 | BD10: =LU_TrimSizes[[#This Row],[Cover Height CM]]&" cm ("&LU_TrimSizes[[#This Row],[Cover Height In]]&""")" -> 26,035 cm (10,25") | BE10: =LU_TrimSizes[[#This Row],[Cover W In]]&""" x "&LU_TrimSizes[[#This Row],[Cover Height In]]&"""" -> 15,00667" x 10,25" | BF10: =LU_TrimSizes[[#This Row],[Cover W (cm)]]&" cm x "&LU_TrimSizes[[#This Row],[Cover Height CM]]&" cm" -> 38,11692 cm x 26,035 cm | BG10: =ROUND(LU_TrimSizes[[#This Row],[Cover W In]]-0.5, 5) -> 14.50667 | BH10: =ROUND(LU_TrimSizes[[#This Row],[Cover W (cm)]]-1.27, 5) -> 36.84692 | BI10: =LU_TrimSizes[[#This Row],[Cover Safe Zone W cm]]&" cm ("&LU_TrimSizes[[#This Row],[Cover Safe Zone W (in)]]&""")" -> 36,84692 cm (14,50667") | BJ10: =LU_TrimSizes[[#This Row],[Cover Safe Zone H cm]]&" cm ("&LU_TrimSizes[[#This Row],[Cover Safe Zone H in]]&""")" -> 24,765 cm (9,75") | BK10: =ROUND(LU_TrimSizes[[#This Row],[Cover Height In]]-0.5, 5) -> 9.75 | BL10: =ROUND(LU_TrimSizes[[#This Row],[Cover Height CM]]-1.27, 5) -> 24.765 | BM10: =LU_TrimSizes[[#This Row],[Cover Safe Zone W (in)]]&""" x "&LU_TrimSizes[[#This Row],[Cover Safe Zone H in]]&"""" -> 14,50667" x 9,75" | BN10: =LU_TrimSizes[[#This Row],[Cover Safe Zone W cm]]&" cm x "&LU_TrimSizes[[#This Row],[Cover Safe Zone H cm]]&" cm" -> 36,84692 cm x 24,765 cm | BO10: 776 | BP10: 828 | BQ10: 828
A11: 9 | B11: Manuscript | C11: Bleed Manuscript Layout | D11: Total Outside | E11: =CmbTotalO | G11: Cover Bleed B | H11: 0.125 | I11: =ROUND(LU_CoverBleed[[#This Row],[Cover Bleed (In)]]*mm, 5) -> 3.175 | J11: =ROUND(LU_CoverBleed[[#This Row],[Cover Bleed (In)]]*cm, 5) -> 0.3175 | R11: 33 | S11: 0.375 | T11: 0.25 | U11: 0.375 | V11: 9.525 | W11: 9,525 mm (0,375") | Y11: 18,9 x 24,61 cm (7,44" x 9,69") | Z11: 7.44 | AA11: 9.69 | AB11: 7.44" x 9.69" | AC11: 18.9 | AD11: 24.61 | AE11: (18.9 x 24.61 cm) | AF11: 18,9 x 24,61 cm (7,44" x 9,69") | AG11: =LU_TrimSizes[[#This Row],[Trim Width (cm)]]&" cm ("&LU_TrimSizes[[#This Row],[Trim Width (in)]]&""")" -> 18,9 cm (7,44") | AH11: =LU_TrimSizes[[#This Row],[Trim Height (cm)]]&" cm ("&LU_TrimSizes[[#This Row],[Trim Height (in)]]&""")" -> 24,61 cm (9,69") | AI11: =ROUND(LU_TrimSizes[[#This Row],[Trim Width (in)]]+0.125, 5)&"""" -> 7,565" | AJ11: =ROUND(LU_TrimSizes[[#This Row],[Trim Height (in)]]+0.25, 5)&"""" -> 9,94" | AK11: =LU_TrimSizes[[#This Row],[Trim W Bleed (cm)]]&" ("&LU_TrimSizes[[#This Row],[Trim W Bleed (in)]]&")" -> 19,2151 cm (7,565") | AL11: =LU_TrimSizes[[#This Row],[Trim H Bleed (cm)]]&" ("&LU_TrimSizes[[#This Row],[Trim H Bleed (in)]]&")" -> 25,2476 cm (9,94") | AM11: =ROUND(LU_TrimSizes[[#This Row],[Trim Width (in)]]*cm+blcmw, 5)&" cm" -> 19,2151 cm | AN11: =ROUND(LU_TrimSizes[[#This Row],[Trim Height (in)]]*cm+blcmh, 5)&" cm" -> 25,2476 cm | AO11: =LU_TrimSizes[[#This Row],[Trim W Bleed (in)]]&" x "&LU_TrimSizes[[#This Row],[Trim H Bleed (in)]] -> 7,565" x 9,94" | AP11: =LU_TrimSizes[[#This Row],[Trim W Bleed (cm)]]&" x "&LU_TrimSizes[[#This Row],[Trim H Bleed (cm)]] -> 19,2151 cm x 25,2476 cm | AQ11: =ROUND(LU_TrimSizes[[#This Row],[Trim Width (in)]]-GutterINmath-MarginOinMath, 5) -> 6.815 | AR11: =ROUND(LU_TrimSizes[[#This Row],[Trim Width (cm)]]-GutterCMmath-MarginOcmMath, 5) -> 17.3125 | AS11: =LU_TrimSizes[[#This Row],[Manuscript Safe Zone W cm]]&" cm ("&LU_TrimSizes[[#This Row],[Manuscript Safe Zone W in]]&""")" -> 17,3125 cm (6,815") | AT11: =ROUND(LU_TrimSizes[[#This Row],[Trim Height (in)]]-MarginOinMath-MarginOinMath, 5) -> 9.19 | AU11: =ROUND(LU_TrimSizes[[#This Row],[Trim Height (cm)]]-MarginOcmMath-MarginOcmMath, 5) -> 23.34 | AV11: =LU_TrimSizes[[#This Row],[Manuscript Safe Zone H (cm)]]&" cm ("&LU_TrimSizes[[#This Row],[Manuscript Safe Zone H in]]&""")" -> 23,34 cm (9,19") | AW11: =LU_TrimSizes[[#This Row],[Manuscript Safe Zone W in]]&""" x "&LU_TrimSizes[[#This Row],[Manuscript Safe Zone H in]]&"""" -> 6,815" x 9,19" | AX11: =LU_TrimSizes[[#This Row],[Manuscript Safe Zone W cm]]&" cm x "&LU_TrimSizes[[#This Row],[Manuscript Safe Zone H (cm)]]&" cm" -> 17,3125 cm x 23,34 cm | AY11: =ROUND(CBleedLin+LU_TrimSizes[[#This Row],[Trim Width (in)]]+SpineWidthInMath+LU_TrimSizes[[#This Row],[Trim Width (in)]]+CBleedRIn, 5) -> 15.88667 | AZ11: =ROUND(LU_TrimSizes[[#This Row],[Trim Width (cm)]]+CBleedLcm+SpineWidthCmMath+CBleedRcm+LU_TrimSizes[[#This Row],[Trim Width (cm)]], 5) -> 40.35692 | BA11: =LU_TrimSizes[[#This Row],[Cover W (cm)]]&" cm ("&LU_TrimSizes[[#This Row],[Cover W In]]&" cm)" -> 40,35692 cm (15,88667 cm) | BB11: =ROUND(CBleedTIn+LU_TrimSizes[[#This Row],[Trim Height (in)]]+CBleedBIn, 5) -> 9.94 | BC11: =ROUND(CBleedTcm+LU_TrimSizes[[#This Row],[Trim Height (cm)]]+CBleedBcm, 5) -> 25.245 | BD11: =LU_TrimSizes[[#This Row],[Cover Height CM]]&" cm ("&LU_TrimSizes[[#This Row],[Cover Height In]]&""")" -> 25,245 cm (9,94") | BE11: =LU_TrimSizes[[#This Row],[Cover W In]]&""" x "&LU_TrimSizes[[#This Row],[Cover Height In]]&"""" -> 15,88667" x 9,94" | BF11: =LU_TrimSizes[[#This Row],[Cover W (cm)]]&" cm x "&LU_TrimSizes[[#This Row],[Cover Height CM]]&" cm" -> 40,35692 cm x 25,245 cm | BG11: =ROUND(LU_TrimSizes[[#This Row],[Cover W In]]-0.5, 5) -> 15.38667 | BH11: =ROUND(LU_TrimSizes[[#This Row],[Cover W (cm)]]-1.27, 5) -> 39.08692 | BI11: =LU_TrimSizes[[#This Row],[Cover Safe Zone W cm]]&" cm ("&LU_TrimSizes[[#This Row],[Cover Safe Zone W (in)]]&""")" -> 39,08692 cm (15,38667") | BJ11: =LU_TrimSizes[[#This Row],[Cover Safe Zone H cm]]&" cm ("&LU_TrimSizes[[#This Row],[Cover Safe Zone H in]]&""")" -> 23,975 cm (9,44") | BK11: =ROUND(LU_TrimSizes[[#This Row],[Cover Height In]]-0.5, 5) -> 9.44 | BL11: =ROUND(LU_TrimSizes[[#This Row],[Cover Height CM]]-1.27, 5) -> 23.975 | BM11: =LU_TrimSizes[[#This Row],[Cover Safe Zone W (in)]]&""" x "&LU_TrimSizes[[#This Row],[Cover Safe Zone H in]]&"""" -> 15,38667" x 9,44" | BN11: =LU_TrimSizes[[#This Row],[Cover Safe Zone W cm]]&" cm x "&LU_TrimSizes[[#This Row],[Cover Safe Zone H cm]]&" cm" -> 39,08692 cm x 23,975 cm | BO11: 776 | BP11: 828 | BQ11: 828
A12: 10 | B12: Manuscript | C12: Bleed Manuscript Layout | D12: Trim Size + Bleed | E12: =SmbTrimB | R12: 34 | S12: 0.375 | T12: 0.25 | U12: 0.375 | V12: 9.525 | W12: 9,525 mm (0,375") | Y12: 19,05 x 23,5 cm (7,5" x 9,25") | Z12: 7.5 | AA12: 9.25 | AB12: 7.5" x 9.25" | AC12: 19.05 | AD12: 23.5 | AE12: (19.05 x 23.5 cm) | AF12: 19,05 x 23,5 cm (7,5" x 9,25") | AG12: =LU_TrimSizes[[#This Row],[Trim Width (cm)]]&" cm ("&LU_TrimSizes[[#This Row],[Trim Width (in)]]&""")" -> 19,05 cm (7,5") | AH12: =LU_TrimSizes[[#This Row],[Trim Height (cm)]]&" cm ("&LU_TrimSizes[[#This Row],[Trim Height (in)]]&""")" -> 23,5 cm (9,25") | AI12: =ROUND(LU_TrimSizes[[#This Row],[Trim Width (in)]]+0.125, 5)&"""" -> 7,625" | AJ12: =ROUND(LU_TrimSizes[[#This Row],[Trim Height (in)]]+0.25, 5)&"""" -> 9,5" | AK12: =LU_TrimSizes[[#This Row],[Trim W Bleed (cm)]]&" ("&LU_TrimSizes[[#This Row],[Trim W Bleed (in)]]&")" -> 19,3675 cm (7,625") | AL12: =LU_TrimSizes[[#This Row],[Trim H Bleed (cm)]]&" ("&LU_TrimSizes[[#This Row],[Trim H Bleed (in)]]&")" -> 24,13 cm (9,5") | AM12: =ROUND(LU_TrimSizes[[#This Row],[Trim Width (in)]]*cm+blcmw, 5)&" cm" -> 19,3675 cm | AN12: =ROUND(LU_TrimSizes[[#This Row],[Trim Height (in)]]*cm+blcmh, 5)&" cm" -> 24,13 cm | AO12: =LU_TrimSizes[[#This Row],[Trim W Bleed (in)]]&" x "&LU_TrimSizes[[#This Row],[Trim H Bleed (in)]] -> 7,625" x 9,5" | AP12: =LU_TrimSizes[[#This Row],[Trim W Bleed (cm)]]&" x "&LU_TrimSizes[[#This Row],[Trim H Bleed (cm)]] -> 19,3675 cm x 24,13 cm | AQ12: =ROUND(LU_TrimSizes[[#This Row],[Trim Width (in)]]-GutterINmath-MarginOinMath, 5) -> 6.875 | AR12: =ROUND(LU_TrimSizes[[#This Row],[Trim Width (cm)]]-GutterCMmath-MarginOcmMath, 5) -> 17.4625 | AS12: =LU_TrimSizes[[#This Row],[Manuscript Safe Zone W cm]]&" cm ("&LU_TrimSizes[[#This Row],[Manuscript Safe Zone W in]]&""")" -> 17,4625 cm (6,875") | AT12: =ROUND(LU_TrimSizes[[#This Row],[Trim Height (in)]]-MarginOinMath-MarginOinMath, 5) -> 8.75 | AU12: =ROUND(LU_TrimSizes[[#This Row],[Trim Height (cm)]]-MarginOcmMath-MarginOcmMath, 5) -> 22.23 | AV12: =LU_TrimSizes[[#This Row],[Manuscript Safe Zone H (cm)]]&" cm ("&LU_TrimSizes[[#This Row],[Manuscript Safe Zone H in]]&""")" -> 22,23 cm (8,75") | AW12: =LU_TrimSizes[[#This Row],[Manuscript Safe Zone W in]]&""" x "&LU_TrimSizes[[#This Row],[Manuscript Safe Zone H in]]&"""" -> 6,875" x 8,75" | AX12: =LU_TrimSizes[[#This Row],[Manuscript Safe Zone W cm]]&" cm x "&LU_TrimSizes[[#This Row],[Manuscript Safe Zone H (cm)]]&" cm" -> 17,4625 cm x 22,23 cm | AY12: =ROUND(CBleedLin+LU_TrimSizes[[#This Row],[Trim Width (in)]]+SpineWidthInMath+LU_TrimSizes[[#This Row],[Trim Width (in)]]+CBleedRIn, 5) -> 16.00667 | AZ12: =ROUND(LU_TrimSizes[[#This Row],[Trim Width (cm)]]+CBleedLcm+SpineWidthCmMath+CBleedRcm+LU_TrimSizes[[#This Row],[Trim Width (cm)]], 5) -> 40.65692 | BA12: =LU_TrimSizes[[#This Row],[Cover W (cm)]]&" cm ("&LU_TrimSizes[[#This Row],[Cover W In]]&" cm)" -> 40,65692 cm (16,00667 cm) | BB12: =ROUND(CBleedTIn+LU_TrimSizes[[#This Row],[Trim Height (in)]]+CBleedBIn, 5) -> 9.5 | BC12: =ROUND(CBleedTcm+LU_TrimSizes[[#This Row],[Trim Height (cm)]]+CBleedBcm, 5) -> 24.135 | BD12: =LU_TrimSizes[[#This Row],[Cover Height CM]]&" cm ("&LU_TrimSizes[[#This Row],[Cover Height In]]&""")" -> 24,135 cm (9,5") | BE12: =LU_TrimSizes[[#This Row],[Cover W In]]&""" x "&LU_TrimSizes[[#This Row],[Cover Height In]]&"""" -> 16,00667" x 9,5" | BF12: =LU_TrimSizes[[#This Row],[Cover W (cm)]]&" cm x "&LU_TrimSizes[[#This Row],[Cover Height CM]]&" cm" -> 40,65692 cm x 24,135 cm | BG12: =ROUND(LU_TrimSizes[[#This Row],[Cover W In]]-0.5, 5) -> 15.50667 | BH12: =ROUND(LU_TrimSizes[[#This Row],[Cover W (cm)]]-1.27, 5) -> 39.38692 | BI12: =LU_TrimSizes[[#This Row],[Cover Safe Zone W cm]]&" cm ("&LU_TrimSizes[[#This Row],[Cover Safe Zone W (in)]]&""")" -> 39,38692 cm (15,50667") | BJ12: =LU_TrimSizes[[#This Row],[Cover Safe Zone H cm]]&" cm ("&LU_TrimSizes[[#This Row],[Cover Safe Zone H in]]&""")" -> 22,865 cm (9") | BK12: =ROUND(LU_TrimSizes[[#This Row],[Cover Height In]]-0.5, 5) -> 9 | BL12: =ROUND(LU_TrimSizes[[#This Row],[Cover Height CM]]-1.27, 5) -> 22.865 | BM12: =LU_TrimSizes[[#This Row],[Cover Safe Zone W (in)]]&""" x "&LU_TrimSizes[[#This Row],[Cover Safe Zone H in]]&"""" -> 15,50667" x 9" | BN12: =LU_TrimSizes[[#This Row],[Cover Safe Zone W cm]]&" cm x "&LU_TrimSizes[[#This Row],[Cover Safe Zone H cm]]&" cm" -> 39,38692 cm x 22,865 cm | BO12: 776 | BP12: 828 | BQ12: 828
A13: 11 | B13: Manuscript | C13: Bleed Manuscript Layout | D13: Trim Size | E13: =ITrimSize | R13: 35 | S13: 0.375 | T13: 0.25 | U13: 0.375 | V13: 9.525 | W13: 9,525 mm (0,375") | Y13: 20,32 x 25,4 cm (8" x 10") | Z13: 8 | AA13: 10 | AB13: 8" x 10" | AC13: 20.32 | AD13: 25.4 | AE13: (20.32 x 25.4 cm) | AF13: 20,32 x 25,4 cm (8" x 10") | AG13: =LU_TrimSizes[[#This Row],[Trim Width (cm)]]&" cm ("&LU_TrimSizes[[#This Row],[Trim Width (in)]]&""")" -> 20,32 cm (8") | AH13: =LU_TrimSizes[[#This Row],[Trim Height (cm)]]&" cm ("&LU_TrimSizes[[#This Row],[Trim Height (in)]]&""")" -> 25,4 cm (10") | AI13: =ROUND(LU_TrimSizes[[#This Row],[Trim Width (in)]]+0.125, 5)&"""" -> 8,125" | AJ13: =ROUND(LU_TrimSizes[[#This Row],[Trim Height (in)]]+0.25, 5)&"""" -> 10,25" | AK13: =LU_TrimSizes[[#This Row],[Trim W Bleed (cm)]]&" ("&LU_TrimSizes[[#This Row],[Trim W Bleed (in)]]&")" -> 20,6375 cm (8,125") | AL13: =LU_TrimSizes[[#This Row],[Trim H Bleed (cm)]]&" ("&LU_TrimSizes[[#This Row],[Trim H Bleed (in)]]&")" -> 26,035 cm (10,25") | AM13: =ROUND(LU_TrimSizes[[#This Row],[Trim Width (in)]]*cm+blcmw, 5)&" cm" -> 20,6375 cm | AN13: =ROUND(LU_TrimSizes[[#This Row],[Trim Height (in)]]*cm+blcmh, 5)&" cm" -> 26,035 cm | AO13: =LU_TrimSizes[[#This Row],[Trim W Bleed (in)]]&" x "&LU_TrimSizes[[#This Row],[Trim H Bleed (in)]] -> 8,125" x 10,25" | AP13: =LU_TrimSizes[[#This Row],[Trim W Bleed (cm)]]&" x "&LU_TrimSizes[[#This Row],[Trim H Bleed (cm)]] -> 20,6375 cm x 26,035 cm | AQ13: =ROUND(LU_TrimSizes[[#This Row],[Trim Width (in)]]-GutterINmath-MarginOinMath, 5) -> 7.375 | AR13: =ROUND(LU_TrimSizes[[#This Row],[Trim Width (cm)]]-GutterCMmath-MarginOcmMath, 5) -> 18.7325 | AS13: =LU_TrimSizes[[#This Row],[Manuscript Safe Zone W cm]]&" cm ("&LU_TrimSizes[[#This Row],[Manuscript Safe Zone W in]]&""")" -> 18,7325 cm (7,375") | AT13: =ROUND(LU_TrimSizes[[#This Row],[Trim Height (in)]]-MarginOinMath-MarginOinMath, 5) -> 9.5 | AU13: =ROUND(LU_TrimSizes[[#This Row],[Trim Height (cm)]]-MarginOcmMath-MarginOcmMath, 5) -> 24.13 | AV13: =LU_TrimSizes[[#This Row],[Manuscript Safe Zone H (cm)]]&" cm ("&LU_TrimSizes[[#This Row],[Manuscript Safe Zone H in]]&""")" -> 24,13 cm (9,5") | AW13: =LU_TrimSizes[[#This Row],[Manuscript Safe Zone W in]]&""" x "&LU_TrimSizes[[#This Row],[Manuscript Safe Zone H in]]&"""" -> 7,375" x 9,5" | AX13: =LU_TrimSizes[[#This Row],[Manuscript Safe Zone W cm]]&" cm x "&LU_TrimSizes[[#This Row],[Manuscript Safe Zone H (cm)]]&" cm" -> 18,7325 cm x 24,13 cm | AY13: =ROUND(CBleedLin+LU_TrimSizes[[#This Row],[Trim Width (in)]]+SpineWidthInMath+LU_TrimSizes[[#This Row],[Trim Width (in)]]+CBleedRIn, 5) -> 17.00667 | AZ13: =ROUND(LU_TrimSizes[[#This Row],[Trim Width (cm)]]+CBleedLcm+SpineWidthCmMath+CBleedRcm+LU_TrimSizes[[#This Row],[Trim Width (cm)]], 5) -> 43.19692 | BA13: =LU_TrimSizes[[#This Row],[Cover W (cm)]]&" cm ("&LU_TrimSizes[[#This Row],[Cover W In]]&" cm)" -> 43,19692 cm (17,00667 cm) | BB13: =ROUND(CBleedTIn+LU_TrimSizes[[#This Row],[Trim Height (in)]]+CBleedBIn, 5) -> 10.25 | BC13: =ROUND(CBleedTcm+LU_TrimSizes[[#This Row],[Trim Height (cm)]]+CBleedBcm, 5) -> 26.035 | BD13: =LU_TrimSizes[[#This Row],[Cover Height CM]]&" cm ("&LU_TrimSizes[[#This Row],[Cover Height In]]&""")" -> 26,035 cm (10,25") | BE13: =LU_TrimSizes[[#This Row],[Cover W In]]&""" x "&LU_TrimSizes[[#This Row],[Cover Height In]]&"""" -> 17,00667" x 10,25" | BF13: =LU_TrimSizes[[#This Row],[Cover W (cm)]]&" cm x "&LU_TrimSizes[[#This Row],[Cover Height CM]]&" cm" -> 43,19692 cm x 26,035 cm | BG13: =ROUND(LU_TrimSizes[[#This Row],[Cover W In]]-0.5, 5) -> 16.50667 | BH13: =ROUND(LU_TrimSizes[[#This Row],[Cover W (cm)]]-1.27, 5) -> 41.92692 | BI13: =LU_TrimSizes[[#This Row],[Cover Safe Zone W cm]]&" cm ("&LU_TrimSizes[[#This Row],[Cover Safe Zone W (in)]]&""")" -> 41,92692 cm (16,50667") | BJ13: =LU_TrimSizes[[#This Row],[Cover Safe Zone H cm]]&" cm ("&LU_TrimSizes[[#This Row],[Cover Safe Zone H in]]&""")" -> 24,765 cm (9,75") | BK13: =ROUND(LU_TrimSizes[[#This Row],[Cover Height In]]-0.5, 5) -> 9.75 | BL13: =ROUND(LU_TrimSizes[[#This Row],[Cover Height CM]]-1.27, 5) -> 24.765 | BM13: =LU_TrimSizes[[#This Row],[Cover Safe Zone W (in)]]&""" x "&LU_TrimSizes[[#This Row],[Cover Safe Zone H in]]&"""" -> 16,50667" x 9,75" | BN13: =LU_TrimSizes[[#This Row],[Cover Safe Zone W cm]]&" cm x "&LU_TrimSizes[[#This Row],[Cover Safe Zone H cm]]&" cm" -> 41,92692 cm x 24,765 cm | BO13: 776 | BP13: 828 | BQ13: 828
A14: 12 | B14: Manuscript | C14: Bleed Manuscript Layout | D14: Safe Zone Size | E14: =SmSafeZone | G14: Spine Margin | H14: Spine Margin (in) | I14: Spine Margin (mm) | J14: Spine Margin (cm) | R14: 36 | S14: 0.375 | T14: 0.25 | U14: 0.375 | V14: 9.525 | W14: 9,525 mm (0,375") | Y14: 20,96 x 15,24 cm (8,25" x 6") | Z14: 8.25 | AA14: 6 | AB14: 8.25" x 6" | AC14: 20.96 | AD14: 15.24 | AE14: (20.96 x 15.24 cm) | AF14: 20,96 x 15,24 cm (8,25" x 6") | AG14: =LU_TrimSizes[[#This Row],[Trim Width (cm)]]&" cm ("&LU_TrimSizes[[#This Row],[Trim Width (in)]]&""")" -> 20,96 cm (8,25") | AH14: =LU_TrimSizes[[#This Row],[Trim Height (cm)]]&" cm ("&LU_TrimSizes[[#This Row],[Trim Height (in)]]&""")" -> 15,24 cm (6") | AI14: =ROUND(LU_TrimSizes[[#This Row],[Trim Width (in)]]+0.125, 5)&"""" -> 8,375" | AJ14: =ROUND(LU_TrimSizes[[#This Row],[Trim Height (in)]]+0.25, 5)&"""" -> 6,25" | AK14: =LU_TrimSizes[[#This Row],[Trim W Bleed (cm)]]&" ("&LU_TrimSizes[[#This Row],[Trim W Bleed (in)]]&")" -> 21,2725 cm (8,375") | AL14: =LU_TrimSizes[[#This Row],[Trim H Bleed (cm)]]&" ("&LU_TrimSizes[[#This Row],[Trim H Bleed (in)]]&")" -> 15,875 cm (6,25") | AM14: =ROUND(LU_TrimSizes[[#This Row],[Trim Width (in)]]*cm+blcmw, 5)&" cm" -> 21,2725 cm | AN14: =ROUND(LU_TrimSizes[[#This Row],[Trim Height (in)]]*cm+blcmh, 5)&" cm" -> 15,875 cm | AO14: =LU_TrimSizes[[#This Row],[Trim W Bleed (in)]]&" x "&LU_TrimSizes[[#This Row],[Trim H Bleed (in)]] -> 8,375" x 6,25" | AP14: =LU_TrimSizes[[#This Row],[Trim W Bleed (cm)]]&" x "&LU_TrimSizes[[#This Row],[Trim H Bleed (cm)]] -> 21,2725 cm x 15,875 cm | AQ14: =ROUND(LU_TrimSizes[[#This Row],[Trim Width (in)]]-GutterINmath-MarginOinMath, 5) -> 7.625 | AR14: =ROUND(LU_TrimSizes[[#This Row],[Trim Width (cm)]]-GutterCMmath-MarginOcmMath, 5) -> 19.3725 | AS14: =LU_TrimSizes[[#This Row],[Manuscript Safe Zone W cm]]&" cm ("&LU_TrimSizes[[#This Row],[Manuscript Safe Zone W in]]&""")" -> 19,3725 cm (7,625") | AT14: =ROUND(LU_TrimSizes[[#This Row],[Trim Height (in)]]-MarginOinMath-MarginOinMath, 5) -> 5.5 | AU14: =ROUND(LU_TrimSizes[[#This Row],[Trim Height (cm)]]-MarginOcmMath-MarginOcmMath, 5) -> 13.97 | AV14: =LU_TrimSizes[[#This Row],[Manuscript Safe Zone H (cm)]]&" cm ("&LU_TrimSizes[[#This Row],[Manuscript Safe Zone H in]]&""")" -> 13,97 cm (5,5") | AW14: =LU_TrimSizes[[#This Row],[Manuscript Safe Zone W in]]&""" x "&LU_TrimSizes[[#This Row],[Manuscript Safe Zone H in]]&"""" -> 7,625" x 5,5" | AX14: =LU_TrimSizes[[#This Row],[Manuscript Safe Zone W cm]]&" cm x "&LU_TrimSizes[[#This Row],[Manuscript Safe Zone H (cm)]]&" cm" -> 19,3725 cm x 13,97 cm | AY14: =ROUND(CBleedLin+LU_TrimSizes[[#This Row],[Trim Width (in)]]+SpineWidthInMath+LU_TrimSizes[[#This Row],[Trim Width (in)]]+CBleedRIn, 5) -> 17.50667 | AZ14: =ROUND(LU_TrimSizes[[#This Row],[Trim Width (cm)]]+CBleedLcm+SpineWidthCmMath+CBleedRcm+LU_TrimSizes[[#This Row],[Trim Width (cm)]], 5) -> 44.47692 | BA14: =LU_TrimSizes[[#This Row],[Cover W (cm)]]&" cm ("&LU_TrimSizes[[#This Row],[Cover W In]]&" cm)" -> 44,47692 cm (17,50667 cm) | BB14: =ROUND(CBleedTIn+LU_TrimSizes[[#This Row],[Trim Height (in)]]+CBleedBIn, 5) -> 6.25 | BC14: =ROUND(CBleedTcm+LU_TrimSizes[[#This Row],[Trim Height (cm)]]+CBleedBcm, 5) -> 15.875 | BD14: =LU_TrimSizes[[#This Row],[Cover Height CM]]&" cm ("&LU_TrimSizes[[#This Row],[Cover Height In]]&""")" -> 15,875 cm (6,25") | BE14: =LU_TrimSizes[[#This Row],[Cover W In]]&""" x "&LU_TrimSizes[[#This Row],[Cover Height In]]&"""" -> 17,50667" x 6,25" | BF14: =LU_TrimSizes[[#This Row],[Cover W (cm)]]&" cm x "&LU_TrimSizes[[#This Row],[Cover Height CM]]&" cm" -> 44,47692 cm x 15,875 cm | BG14: =ROUND(LU_TrimSizes[[#This Row],[Cover W In]]-0.5, 5) -> 17.00667 | BH14: =ROUND(LU_TrimSizes[[#This Row],[Cover W (cm)]]-1.27, 5) -> 43.20692 | BI14: =LU_TrimSizes[[#This Row],[Cover Safe Zone W cm]]&" cm ("&LU_TrimSizes[[#This Row],[Cover Safe Zone W (in)]]&""")" -> 43,20692 cm (17,00667") | BJ14: =LU_TrimSizes[[#This Row],[Cover Safe Zone H cm]]&" cm ("&LU_TrimSizes[[#This Row],[Cover Safe Zone H in]]&""")" -> 14,605 cm (5,75") | BK14: =ROUND(LU_TrimSizes[[#This Row],[Cover Height In]]-0.5, 5) -> 5.75 | BL14: =ROUND(LU_TrimSizes[[#This Row],[Cover Height CM]]-1.27, 5) -> 14.605 | BM14: =LU_TrimSizes[[#This Row],[Cover Safe Zone W (in)]]&""" x "&LU_TrimSizes[[#This Row],[Cover Safe Zone H in]]&"""" -> 17,00667" x 5,75" | BN14: =LU_TrimSizes[[#This Row],[Cover Safe Zone W cm]]&" cm x "&LU_TrimSizes[[#This Row],[Cover Safe Zone H cm]]&" cm" -> 43,20692 cm x 14,605 cm | BO14: 750 | BP14: 800 | BQ14: 800
A15: 13 | B15: Manuscript | C15: Bleed Manuscript Layout | D15: Gutter Margin | E15: =mMarginG | G15: L Spine Margin | H15: 0.0625 | I15: =ROUND(LU_SpineMargin[[#This Row],[Spine Margin (in)]]*mm, 5) -> 1.5875 | J15: =ROUND(LU_SpineMargin[[#This Row],[Spine Margin (in)]]*cm,5 ) -> 0.15875 | R15: 37 | S15: 0.375 | T15: 0.25 | U15: 0.375 | V15: 9.525 | W15: 9,525 mm (0,375") | Y15: 20,96 x 20,96 cm (8,25" x 8,25") | Z15: 8.25 | AA15: 8.25 | AB15: 8.25" x 8.25" | AC15: 20.96 | AD15: 20.96 | AE15: (20.96 x 20.96 cm) | AF15: 20,96 x 20,96 cm (8,25" x 8,25") | AG15: =LU_TrimSizes[[#This Row],[Trim Width (cm)]]&" cm ("&LU_TrimSizes[[#This Row],[Trim Width (in)]]&""")" -> 20,96 cm (8,25") | AH15: =LU_TrimSizes[[#This Row],[Trim Height (cm)]]&" cm ("&LU_TrimSizes[[#This Row],[Trim Height (in)]]&""")" -> 20,96 cm (8,25") | AI15: =ROUND(LU_TrimSizes[[#This Row],[Trim Width (in)]]+0.125, 5)&"""" -> 8,375" | AJ15: =ROUND(LU_TrimSizes[[#This Row],[Trim Height (in)]]+0.25, 5)&"""" -> 8,5" | AK15: =LU_TrimSizes[[#This Row],[Trim W Bleed (cm)]]&" ("&LU_TrimSizes[[#This Row],[Trim W Bleed (in)]]&")" -> 21,2725 cm (8,375") | AL15: =LU_TrimSizes[[#This Row],[Trim H Bleed (cm)]]&" ("&LU_TrimSizes[[#This Row],[Trim H Bleed (in)]]&")" -> 21,59 cm (8,5") | AM15: =ROUND(LU_TrimSizes[[#This Row],[Trim Width (in)]]*cm+blcmw, 5)&" cm" -> 21,2725 cm | AN15: =ROUND(LU_TrimSizes[[#This Row],[Trim Height (in)]]*cm+blcmh, 5)&" cm" -> 21,59 cm | AO15: =LU_TrimSizes[[#This Row],[Trim W Bleed (in)]]&" x "&LU_TrimSizes[[#This Row],[Trim H Bleed (in)]] -> 8,375" x 8,5" | AP15: =LU_TrimSizes[[#This Row],[Trim W Bleed (cm)]]&" x "&LU_TrimSizes[[#This Row],[Trim H Bleed (cm)]] -> 21,2725 cm x 21,59 cm | AQ15: =ROUND(LU_TrimSizes[[#This Row],[Trim Width (in)]]-GutterINmath-MarginOinMath, 5) -> 7.625 | AR15: =ROUND(LU_TrimSizes[[#This Row],[Trim Width (cm)]]-GutterCMmath-MarginOcmMath, 5) -> 19.3725 | AS15: =LU_TrimSizes[[#This Row],[Manuscript Safe Zone W cm]]&" cm ("&LU_TrimSizes[[#This Row],[Manuscript Safe Zone W in]]&""")" -> 19,3725 cm (7,625") | AT15: =ROUND(LU_TrimSizes[[#This Row],[Trim Height (in)]]-MarginOinMath-MarginOinMath, 5) -> 7.75 | AU15: =ROUND(LU_TrimSizes[[#This Row],[Trim Height (cm)]]-MarginOcmMath-MarginOcmMath, 5) -> 19.69 | AV15: =LU_TrimSizes[[#This Row],[Manuscript Safe Zone H (cm)]]&" cm ("&LU_TrimSizes[[#This Row],[Manuscript Safe Zone H in]]&""")" -> 19,69 cm (7,75") | AW15: =LU_TrimSizes[[#This Row],[Manuscript Safe Zone W in]]&""" x "&LU_TrimSizes[[#This Row],[Manuscript Safe Zone H in]]&"""" -> 7,625" x 7,75" | AX15: =LU_TrimSizes[[#This Row],[Manuscript Safe Zone W cm]]&" cm x "&LU_TrimSizes[[#This Row],[Manuscript Safe Zone H (cm)]]&" cm" -> 19,3725 cm x 19,69 cm | AY15: =ROUND(CBleedLin+LU_TrimSizes[[#This Row],[Trim Width (in)]]+SpineWidthInMath+LU_TrimSizes[[#This Row],[Trim Width (in)]]+CBleedRIn, 5) -> 17.50667 | AZ15: =ROUND(LU_TrimSizes[[#This Row],[Trim Width (cm)]]+CBleedLcm+SpineWidthCmMath+CBleedRcm+LU_TrimSizes[[#This Row],[Trim Width (cm)]], 5) -> 44.47692 | BA15: =LU_TrimSizes[[#This Row],[Cover W (cm)]]&" cm ("&LU_TrimSizes[[#This Row],[Cover W In]]&" cm)" -> 44,47692 cm (17,50667 cm) | BB15: =ROUND(CBleedTIn+LU_TrimSizes[[#This Row],[Trim Height (in)]]+CBleedBIn, 5) -> 8.5 | BC15: =ROUND(CBleedTcm+LU_TrimSizes[[#This Row],[Trim Height (cm)]]+CBleedBcm, 5) -> 21.595 | BD15: =LU_TrimSizes[[#This Row],[Cover Height CM]]&" cm ("&LU_TrimSizes[[#This Row],[Cover Height In]]&""")" -> 21,595 cm (8,5") | BE15: =LU_TrimSizes[[#This Row],[Cover W In]]&""" x "&LU_TrimSizes[[#This Row],[Cover Height In]]&"""" -> 17,50667" x 8,5" | BF15: =LU_TrimSizes[[#This Row],[Cover W (cm)]]&" cm x "&LU_TrimSizes[[#This Row],[Cover Height CM]]&" cm" -> 44,47692 cm x 21,595 cm | BG15: =ROUND(LU_TrimSizes[[#This Row],[Cover W In]]-0.5, 5) -> 17.00667 | BH15: =ROUND(LU_TrimSizes[[#This Row],[Cover W (cm)]]-1.27, 5) -> 43.20692 | BI15: =LU_TrimSizes[[#This Row],[Cover Safe Zone W cm]]&" cm ("&LU_TrimSizes[[#This Row],[Cover Safe Zone W (in)]]&""")" -> 43,20692 cm (17,00667") | BJ15: =LU_TrimSizes[[#This Row],[Cover Safe Zone H cm]]&" cm ("&LU_TrimSizes[[#This Row],[Cover Safe Zone H in]]&""")" -> 20,325 cm (8") | BK15: =ROUND(LU_TrimSizes[[#This Row],[Cover Height In]]-0.5, 5) -> 8 | BL15: =ROUND(LU_TrimSizes[[#This Row],[Cover Height CM]]-1.27, 5) -> 20.325 | BM15: =LU_TrimSizes[[#This Row],[Cover Safe Zone W (in)]]&""" x "&LU_TrimSizes[[#This Row],[Cover Safe Zone H in]]&"""" -> 17,00667" x 8" | BN15: =LU_TrimSizes[[#This Row],[Cover Safe Zone W cm]]&" cm x "&LU_TrimSizes[[#This Row],[Cover Safe Zone H cm]]&" cm" -> 43,20692 cm x 20,325 cm | BO15: 750 | BP15: 800 | BQ15: 800
A16: 14 | B16: Cover | C16: Left-to-Right Reading Book Cover Layout | D16: Spine Width | E16: =WcSpine | G16: R Spine Margin | H16: 0.0625 | I16: =ROUND(LU_SpineMargin[[#This Row],[Spine Margin (in)]]*mm, 5) -> 1.5875 | J16: =ROUND(LU_SpineMargin[[#This Row],[Spine Margin (in)]]*cm,5 ) -> 0.15875 | R16: 38 | S16: 0.375 | T16: 0.25 | U16: 0.375 | V16: 9.525 | W16: 9,525 mm (0,375") | Y16: 21,59 x 21,59 cm (8,5" x 8,5") | Z16: 8.5 | AA16: 8.5 | AB16: 8.5" x 8.5" | AC16: 21.59 | AD16: 21.59 | AE16: (21.59 x 21.59 cm) | AF16: 21,59 x 21,59 cm (8,5" x 8,5") | AG16: =LU_TrimSizes[[#This Row],[Trim Width (cm)]]&" cm ("&LU_TrimSizes[[#This Row],[Trim Width (in)]]&""")" -> 21,59 cm (8,5") | AH16: =LU_TrimSizes[[#This Row],[Trim Height (cm)]]&" cm ("&LU_TrimSizes[[#This Row],[Trim Height (in)]]&""")" -> 21,59 cm (8,5") | AI16: =ROUND(LU_TrimSizes[[#This Row],[Trim Width (in)]]+0.125, 5)&"""" -> 8,625" | AJ16: =ROUND(LU_TrimSizes[[#This Row],[Trim Height (in)]]+0.25, 5)&"""" -> 8,75" | AK16: =LU_TrimSizes[[#This Row],[Trim W Bleed (cm)]]&" ("&LU_TrimSizes[[#This Row],[Trim W Bleed (in)]]&")" -> 21,9075 cm (8,625") | AL16: =LU_TrimSizes[[#This Row],[Trim H Bleed (cm)]]&" ("&LU_TrimSizes[[#This Row],[Trim H Bleed (in)]]&")" -> 22,225 cm (8,75") | AM16: =ROUND(LU_TrimSizes[[#This Row],[Trim Width (in)]]*cm+blcmw, 5)&" cm" -> 21,9075 cm | AN16: =ROUND(LU_TrimSizes[[#This Row],[Trim Height (in)]]*cm+blcmh, 5)&" cm" -> 22,225 cm | AO16: =LU_TrimSizes[[#This Row],[Trim W Bleed (in)]]&" x "&LU_TrimSizes[[#This Row],[Trim H Bleed (in)]] -> 8,625" x 8,75" | AP16: =LU_TrimSizes[[#This Row],[Trim W Bleed (cm)]]&" x "&LU_TrimSizes[[#This Row],[Trim H Bleed (cm)]] -> 21,9075 cm x 22,225 cm | AQ16: =ROUND(LU_TrimSizes[[#This Row],[Trim Width (in)]]-GutterINmath-MarginOinMath, 5) -> 7.875 | AR16: =ROUND(LU_TrimSizes[[#This Row],[Trim Width (cm)]]-GutterCMmath-MarginOcmMath, 5) -> 20.0025 | AS16: =LU_TrimSizes[[#This Row],[Manuscript Safe Zone W cm]]&" cm ("&LU_TrimSizes[[#This Row],[Manuscript Safe Zone W in]]&""")" -> 20,0025 cm (7,875") | AT16: =ROUND(LU_TrimSizes[[#This Row],[Trim Height (in)]]-MarginOinMath-MarginOinMath, 5) -> 8 | AU16: =ROUND(LU_TrimSizes[[#This Row],[Trim Height (cm)]]-MarginOcmMath-MarginOcmMath, 5) -> 20.32 | AV16: =LU_TrimSizes[[#This Row],[Manuscript Safe Zone H (cm)]]&" cm ("&LU_TrimSizes[[#This Row],[Manuscript Safe Zone H in]]&""")" -> 20,32 cm (8") | AW16: =LU_TrimSizes[[#This Row],[Manuscript Safe Zone W in]]&""" x "&LU_TrimSizes[[#This Row],[Manuscript Safe Zone H in]]&"""" -> 7,875" x 8" | AX16: =LU_TrimSizes[[#This Row],[Manuscript Safe Zone W cm]]&" cm x "&LU_TrimSizes[[#This Row],[Manuscript Safe Zone H (cm)]]&" cm" -> 20,0025 cm x 20,32 cm | AY16: =ROUND(CBleedLin+LU_TrimSizes[[#This Row],[Trim Width (in)]]+SpineWidthInMath+LU_TrimSizes[[#This Row],[Trim Width (in)]]+CBleedRIn, 5) -> 18.00667 | AZ16: =ROUND(LU_TrimSizes[[#This Row],[Trim Width (cm)]]+CBleedLcm+SpineWidthCmMath+CBleedRcm+LU_TrimSizes[[#This Row],[Trim Width (cm)]], 5) -> 45.73692 | BA16: =LU_TrimSizes[[#This Row],[Cover W (cm)]]&" cm ("&LU_TrimSizes[[#This Row],[Cover W In]]&" cm)" -> 45,73692 cm (18,00667 cm) | BB16: =ROUND(CBleedTIn+LU_TrimSizes[[#This Row],[Trim Height (in)]]+CBleedBIn, 5) -> 8.75 | BC16: =ROUND(CBleedTcm+LU_TrimSizes[[#This Row],[Trim Height (cm)]]+CBleedBcm, 5) -> 22.225 | BD16: =LU_TrimSizes[[#This Row],[Cover Height CM]]&" cm ("&LU_TrimSizes[[#This Row],[Cover Height In]]&""")" -> 22,225 cm (8,75") | BE16: =LU_TrimSizes[[#This Row],[Cover W In]]&""" x "&LU_TrimSizes[[#This Row],[Cover Height In]]&"""" -> 18,00667" x 8,75" | BF16: =LU_TrimSizes[[#This Row],[Cover W (cm)]]&" cm x "&LU_TrimSizes[[#This Row],[Cover Height CM]]&" cm" -> 45,73692 cm x 22,225 cm | BG16: =ROUND(LU_TrimSizes[[#This Row],[Cover W In]]-0.5, 5) -> 17.50667 | BH16: =ROUND(LU_TrimSizes[[#This Row],[Cover W (cm)]]-1.27, 5) -> 44.46692 | BI16: =LU_TrimSizes[[#This Row],[Cover Safe Zone W cm]]&" cm ("&LU_TrimSizes[[#This Row],[Cover Safe Zone W (in)]]&""")" -> 44,46692 cm (17,50667") | BJ16: =LU_TrimSizes[[#This Row],[Cover Safe Zone H cm]]&" cm ("&LU_TrimSizes[[#This Row],[Cover Safe Zone H in]]&""")" -> 20,955 cm (8,25") | BK16: =ROUND(LU_TrimSizes[[#This Row],[Cover Height In]]-0.5, 5) -> 8.25 | BL16: =ROUND(LU_TrimSizes[[#This Row],[Cover Height CM]]-1.27, 5) -> 20.955 | BM16: =LU_TrimSizes[[#This Row],[Cover Safe Zone W (in)]]&""" x "&LU_TrimSizes[[#This Row],[Cover Safe Zone H in]]&"""" -> 17,50667" x 8,25" | BN16: =LU_TrimSizes[[#This Row],[Cover Safe Zone W cm]]&" cm x "&LU_TrimSizes[[#This Row],[Cover Safe Zone H cm]]&" cm" -> 44,46692 cm x 20,955 cm | BO16: 550 | BP16: 590 | BQ16: 590
A17: 15 | B17: Cover | C17: Left-to-Right Reading Book Cover Layout | D17: Spine Text Width | E17: =WcSpineText | R17: 39 | S17: 0.375 | T17: 0.25 | U17: 0.375 | V17: 9.525 | W17: 9,525 mm (0,375") | Y17: 21,59 x 27,94 cm (8,5" x 11") | Z17: 8.5 | AA17: 11 | AB17: 8.5" x 11" | AC17: 21.59 | AD17: 27.94 | AE17: (21.59 x 27.94 cm) | AF17: 21,59 x 27,94 cm (8,5" x 11") | AG17: =LU_TrimSizes[[#This Row],[Trim Width (cm)]]&" cm ("&LU_TrimSizes[[#This Row],[Trim Width (in)]]&""")" -> 21,59 cm (8,5") | AH17: =LU_TrimSizes[[#This Row],[Trim Height (cm)]]&" cm ("&LU_TrimSizes[[#This Row],[Trim Height (in)]]&""")" -> 27,94 cm (11") | AI17: =ROUND(LU_TrimSizes[[#This Row],[Trim Width (in)]]+0.125, 5)&"""" -> 8,625" | AJ17: =ROUND(LU_TrimSizes[[#This Row],[Trim Height (in)]]+0.25, 5)&"""" -> 11,25" | AK17: =LU_TrimSizes[[#This Row],[Trim W Bleed (cm)]]&" ("&LU_TrimSizes[[#This Row],[Trim W Bleed (in)]]&")" -> 21,9075 cm (8,625") | AL17: =LU_TrimSizes[[#This Row],[Trim H Bleed (cm)]]&" ("&LU_TrimSizes[[#This Row],[Trim H Bleed (in)]]&")" -> 28,575 cm (11,25") | AM17: =ROUND(LU_TrimSizes[[#This Row],[Trim Width (in)]]*cm+blcmw, 5)&" cm" -> 21,9075 cm | AN17: =ROUND(LU_TrimSizes[[#This Row],[Trim Height (in)]]*cm+blcmh, 5)&" cm" -> 28,575 cm | AO17: =LU_TrimSizes[[#This Row],[Trim W Bleed (in)]]&" x "&LU_TrimSizes[[#This Row],[Trim H Bleed (in)]] -> 8,625" x 11,25" | AP17: =LU_TrimSizes[[#This Row],[Trim W Bleed (cm)]]&" x "&LU_TrimSizes[[#This Row],[Trim H Bleed (cm)]] -> 21,9075 cm x 28,575 cm | AQ17: =ROUND(LU_TrimSizes[[#This Row],[Trim Width (in)]]-GutterINmath-MarginOinMath, 5) -> 7.875 | AR17: =ROUND(LU_TrimSizes[[#This Row],[Trim Width (cm)]]-GutterCMmath-MarginOcmMath, 5) -> 20.0025 | AS17: =LU_TrimSizes[[#This Row],[Manuscript Safe Zone W cm]]&" cm ("&LU_TrimSizes[[#This Row],[Manuscript Safe Zone W in]]&""")" -> 20,0025 cm (7,875") | AT17: =ROUND(LU_TrimSizes[[#This Row],[Trim Height (in)]]-MarginOinMath-MarginOinMath, 5) -> 10.5 | AU17: =ROUND(LU_TrimSizes[[#This Row],[Trim Height (cm)]]-MarginOcmMath-MarginOcmMath, 5) -> 26.67 | AV17: =LU_TrimSizes[[#This Row],[Manuscript Safe Zone H (cm)]]&" cm ("&LU_TrimSizes[[#This Row],[Manuscript Safe Zone H in]]&""")" -> 26,67 cm (10,5") | AW17: =LU_TrimSizes[[#This Row],[Manuscript Safe Zone W in]]&""" x "&LU_TrimSizes[[#This Row],[Manuscript Safe Zone H in]]&"""" -> 7,875" x 10,5" | AX17: =LU_TrimSizes[[#This Row],[Manuscript Safe Zone W cm]]&" cm x "&LU_TrimSizes[[#This Row],[Manuscript Safe Zone H (cm)]]&" cm" -> 20,0025 cm x 26,67 cm | AY17: =ROUND(CBleedLin+LU_TrimSizes[[#This Row],[Trim Width (in)]]+SpineWidthInMath+LU_TrimSizes[[#This Row],[Trim Width (in)]]+CBleedRIn, 5) -> 18.00667 | AZ17: =ROUND(LU_TrimSizes[[#This Row],[Trim Width (cm)]]+CBleedLcm+SpineWidthCmMath+CBleedRcm+LU_TrimSizes[[#This Row],[Trim Width (cm)]], 5) -> 45.73692 | BA17: =LU_TrimSizes[[#This Row],[Cover W (cm)]]&" cm ("&LU_TrimSizes[[#This Row],[Cover W In]]&" cm)" -> 45,73692 cm (18,00667 cm) | BB17: =ROUND(CBleedTIn+LU_TrimSizes[[#This Row],[Trim Height (in)]]+CBleedBIn, 5) -> 11.25 | BC17: =ROUND(CBleedTcm+LU_TrimSizes[[#This Row],[Trim Height (cm)]]+CBleedBcm, 5) -> 28.575 | BD17: =LU_TrimSizes[[#This Row],[Cover Height CM]]&" cm ("&LU_TrimSizes[[#This Row],[Cover Height In]]&""")" -> 28,575 cm (11,25") | BE17: =LU_TrimSizes[[#This Row],[Cover W In]]&""" x "&LU_TrimSizes[[#This Row],[Cover Height In]]&"""" -> 18,00667" x 11,25" | BF17: =LU_TrimSizes[[#This Row],[Cover W (cm)]]&" cm x "&LU_TrimSizes[[#This Row],[Cover Height CM]]&" cm" -> 45,73692 cm x 28,575 cm | BG17: =ROUND(LU_TrimSizes[[#This Row],[Cover W In]]-0.5, 5) -> 17.50667 | BH17: =ROUND(LU_TrimSizes[[#This Row],[Cover W (cm)]]-1.27, 5) -> 44.46692 | BI17: =LU_TrimSizes[[#This Row],[Cover Safe Zone W cm]]&" cm ("&LU_TrimSizes[[#This Row],[Cover Safe Zone W (in)]]&""")" -> 44,46692 cm (17,50667") | BJ17: =LU_TrimSizes[[#This Row],[Cover Safe Zone H cm]]&" cm ("&LU_TrimSizes[[#This Row],[Cover Safe Zone H in]]&""")" -> 27,305 cm (10,75") | BK17: =ROUND(LU_TrimSizes[[#This Row],[Cover Height In]]-0.5, 5) -> 10.75 | BL17: =ROUND(LU_TrimSizes[[#This Row],[Cover Height CM]]-1.27, 5) -> 27.305 | BM17: =LU_TrimSizes[[#This Row],[Cover Safe Zone W (in)]]&""" x "&LU_TrimSizes[[#This Row],[Cover Safe Zone H in]]&"""" -> 17,50667" x 10,75" | BN17: =LU_TrimSizes[[#This Row],[Cover Safe Zone W cm]]&" cm x "&LU_TrimSizes[[#This Row],[Cover Safe Zone H cm]]&" cm" -> 44,46692 cm x 27,305 cm | BO17: 550 | BP17: 590 | BQ17: 590
A18: 16 | B18: Cover | C18: Left-to-Right Reading Book Cover Layout | D18: Spine Margin | E18: =CcMarginS | R18: 40 | S18: 0.375 | T18: 0.25 | U18: 0.375 | V18: 9.525 | W18: 9,525 mm (0,375") | Y18: 21 x 29,7 cm (8.27" x 11,69") | Z18: 8.27 | AA18: 11.69 | AB18: 8.27" x 11.69" | AC18: 21 | AD18: 29.7 | AE18: (21 x 29.7 cm) | AF18: 21 x 29.7 cm (8.27" x 11.69") | AG18: =LU_TrimSizes[[#This Row],[Trim Width (cm)]]&" cm ("&LU_TrimSizes[[#This Row],[Trim Width (in)]]&""")" -> 21 cm (8,27") | AH18: =LU_TrimSizes[[#This Row],[Trim Height (cm)]]&" cm ("&LU_TrimSizes[[#This Row],[Trim Height (in)]]&""")" -> 29,7 cm (11,69") | AI18: =ROUND(LU_TrimSizes[[#This Row],[Trim Width (in)]]+0.125, 5)&"""" -> 8,395" | AJ18: =ROUND(LU_TrimSizes[[#This Row],[Trim Height (in)]]+0.25, 5)&"""" -> 11,94" | AK18: =LU_TrimSizes[[#This Row],[Trim W Bleed (cm)]]&" ("&LU_TrimSizes[[#This Row],[Trim W Bleed (in)]]&")" -> 21,3233 cm (8,395") | AL18: =LU_TrimSizes[[#This Row],[Trim H Bleed (cm)]]&" ("&LU_TrimSizes[[#This Row],[Trim H Bleed (in)]]&")" -> 30,3276 cm (11,94") | AM18: =ROUND(LU_TrimSizes[[#This Row],[Trim Width (in)]]*cm+blcmw, 5)&" cm" -> 21,3233 cm | AN18: =ROUND(LU_TrimSizes[[#This Row],[Trim Height (in)]]*cm+blcmh, 5)&" cm" -> 30,3276 cm | AO18: =LU_TrimSizes[[#This Row],[Trim W Bleed (in)]]&" x "&LU_TrimSizes[[#This Row],[Trim H Bleed (in)]] -> 8,395" x 11,94" | AP18: =LU_TrimSizes[[#This Row],[Trim W Bleed (cm)]]&" x "&LU_TrimSizes[[#This Row],[Trim H Bleed (cm)]] -> 21,3233 cm x 30,3276 cm | AQ18: =ROUND(LU_TrimSizes[[#This Row],[Trim Width (in)]]-GutterINmath-MarginOinMath, 5) -> 7.645 | AR18: =ROUND(LU_TrimSizes[[#This Row],[Trim Width (cm)]]-GutterCMmath-MarginOcmMath, 5) -> 19.4125 | AS18: =LU_TrimSizes[[#This Row],[Manuscript Safe Zone W cm]]&" cm ("&LU_TrimSizes[[#This Row],[Manuscript Safe Zone W in]]&""")" -> 19,4125 cm (7,645") | AT18: =ROUND(LU_TrimSizes[[#This Row],[Trim Height (in)]]-MarginOinMath-MarginOinMath, 5) -> 11.19 | AU18: =ROUND(LU_TrimSizes[[#This Row],[Trim Height (cm)]]-MarginOcmMath-MarginOcmMath, 5) -> 28.43 | AV18: =LU_TrimSizes[[#This Row],[Manuscript Safe Zone H (cm)]]&" cm ("&LU_TrimSizes[[#This Row],[Manuscript Safe Zone H in]]&""")" -> 28,43 cm (11,19") | AW18: =LU_TrimSizes[[#This Row],[Manuscript Safe Zone W in]]&""" x "&LU_TrimSizes[[#This Row],[Manuscript Safe Zone H in]]&"""" -> 7,645" x 11,19" | AX18: =LU_TrimSizes[[#This Row],[Manuscript Safe Zone W cm]]&" cm x "&LU_TrimSizes[[#This Row],[Manuscript Safe Zone H (cm)]]&" cm" -> 19,4125 cm x 28,43 cm | AY18: =ROUND(CBleedLin+LU_TrimSizes[[#This Row],[Trim Width (in)]]+SpineWidthInMath+LU_TrimSizes[[#This Row],[Trim Width (in)]]+CBleedRIn, 5) -> 17.54667 | AZ18: =ROUND(LU_TrimSizes[[#This Row],[Trim Width (cm)]]+CBleedLcm+SpineWidthCmMath+CBleedRcm+LU_TrimSizes[[#This Row],[Trim Width (cm)]], 5) -> 44.55692 | BA18: =LU_TrimSizes[[#This Row],[Cover W (cm)]]&" cm ("&LU_TrimSizes[[#This Row],[Cover W In]]&" cm)" -> 44,55692 cm (17,54667 cm) | BB18: =ROUND(CBleedTIn+LU_TrimSizes[[#This Row],[Trim Height (in)]]+CBleedBIn, 5) -> 11.94 | BC18: =ROUND(CBleedTcm+LU_TrimSizes[[#This Row],[Trim Height (cm)]]+CBleedBcm, 5) -> 30.335 | BD18: =LU_TrimSizes[[#This Row],[Cover Height CM]]&" cm ("&LU_TrimSizes[[#This Row],[Cover Height In]]&""")" -> 30,335 cm (11,94") | BE18: =LU_TrimSizes[[#This Row],[Cover W In]]&""" x "&LU_TrimSizes[[#This Row],[Cover Height In]]&"""" -> 17,54667" x 11,94" | BF18: =LU_TrimSizes[[#This Row],[Cover W (cm)]]&" cm x "&LU_TrimSizes[[#This Row],[Cover Height CM]]&" cm" -> 44,55692 cm x 30,335 cm | BG18: =ROUND(LU_TrimSizes[[#This Row],[Cover W In]]-0.5, 5) -> 17.04667 | BH18: =ROUND(LU_TrimSizes[[#This Row],[Cover W (cm)]]-1.27, 5) -> 43.28692 | BI18: =LU_TrimSizes[[#This Row],[Cover Safe Zone W cm]]&" cm ("&LU_TrimSizes[[#This Row],[Cover Safe Zone W (in)]]&""")" -> 43,28692 cm (17,04667") | BJ18: =LU_TrimSizes[[#This Row],[Cover Safe Zone H cm]]&" cm ("&LU_TrimSizes[[#This Row],[Cover Safe Zone H in]]&""")" -> 29,065 cm (11,44") | BK18: =ROUND(LU_TrimSizes[[#This Row],[Cover Height In]]-0.5, 5) -> 11.44 | BL18: =ROUND(LU_TrimSizes[[#This Row],[Cover Height CM]]-1.27, 5) -> 29.065 | BM18: =LU_TrimSizes[[#This Row],[Cover Safe Zone W (in)]]&""" x "&LU_TrimSizes[[#This Row],[Cover Safe Zone H in]]&"""" -> 17,04667" x 11,44" | BN18: =LU_TrimSizes[[#This Row],[Cover Safe Zone W cm]]&" cm x "&LU_TrimSizes[[#This Row],[Cover Safe Zone H cm]]&" cm" -> 43,28692 cm x 29,065 cm | BO18: 730 | BP18: 780 | BQ18: 0
A19: 17 | B19: Cover | C19: Left-to-Right Reading Book Cover Layout | D19: Bleed | E19: =CcBleed | R19: 41 | S19: 0.375 | T19: 0.25 | U19: 0.375 | V19: 9.525 | W19: 9,525 mm (0,375")
A20: 18 | B20: Cover | C20: Left-to-Right Reading Book Cover Layout | D20: Trim Variance | E20: =CcTrimVar | R20: 42 | S20: 0.375 | T20: 0.25 | U20: 0.375 | V20: 9.525 | W20: 9,525 mm (0,375") | Y20: 1 | Z20: 2 | AA20: 3 | AB20: 4 | AC20: 5 | AD20: 6 | AE20: 7 | AF20: 8 | AG20: 9 | AH20: 10 | AI20: 11 | AJ20: 12 | AK20: 13 | AL20: 14 | AM20: 15 | AN20: 16 | AO20: 17 | AP20: 18 | AQ20: 19 | AR20: 20 | AS20: 21 | AT20: 22 | AU20: 23 | AV20: 24 | AW20: 25 | AX20: 26 | AY20: 27 | AZ20: 28 | BA20: 29 | BB20: 30 | BC20: 31 | BD20: 32 | BE20: 33 | BF20: 34 | BG20: 35 | BH20: 36 | BI20: 37 | BJ20: 38 | BK20: 39 | BL20: 40 | BM20: 41 | BN20: 42 | BO20: 43 | BP20: 44 | BQ20: 45
A21: 19 | B21: Cover | C21: Left-to-Right Reading Book Cover Layout | D21: Outside Margin | E21: =CcMarginO | R21: 43 | S21: 0.375 | T21: 0.25 | U21: 0.375 | V21: 9.525 | W21: 9,525 mm (0,375")
A22: 20 | B22: Cover | C22: Left-to-Right Reading Book Cover Layout | D22: Barcode Size | E22: =CcbarSize | R22: 44 | S22: 0.375 | T22: 0.25 | U22: 0.375 | V22: 9.525 | W22: 9,525 mm (0,375")
A23: 21 | B23: Cover | C23: Left-to-Right Reading Book Cover Layout | D23: Safe Zone Size | E23: =ScSafeZone | R23: 45 | S23: 0.375 | T23: 0.25 | U23: 0.375 | V23: 9.525 | W23: 9,525 mm (0,375")
A24: 22 | B24: Cover | C24: Left-to-Right Reading Book Cover Layout | D24: Trim Size | E24: =ScTrim | R24: 46 | S24: 0.375 | T24: 0.25 | U24: 0.375 | V24: 9.525 | W24: 9,525 mm (0,375") | Y24: Taille de coupe | Z24: Encre noire et papier crème | AA24: Encre noire et papier blanc | AB24: Encre de couleur et papier blanc
A25: 23 | B25: Cover | C25: Left-to-Right Reading Book Cover Layout | D25: Cover Size | E25: =ScSize | R25: 47 | S25: 0.375 | T25: 0.25 | U25: 0.375 | V25: 9.525 | W25: 9,525 mm (0,375") | Y25: 12,7 x 20,32 cm (5" x 8") | Z25: 776 | AA25: 828 | AB25: 828
A26: 24 | B26: Cover | C26: Left-to-Right Reading Book Cover Layout | D26: Barcode Placement | E26: =CclrBarcodeP | R26: 48 | S26: 0.375 | T26: 0.25 | U26: 0.375 | V26: 9.525 | W26: 9,525 mm (0,375") | Y26: 12,85 x 19,84 cm (5,06" x 7,81") | Z26: 776 | AA26: 828 | AB26: 828
A27: 25 | B27: Cover | C27: Right-to-Left Reading Book Cover Layout | D27: Spine Width | E27: =WcSpine | R27: 49 | S27: 0.375 | T27: 0.25 | U27: 0.375 | V27: 9.525 | W27: 9,525 mm (0,375") | Y27: 13,34 x 20,32 cm (5,25" x 8") | Z27: 776 | AA27: 828 | AB27: 828
A28: 26 | B28: Cover | C28: Right-to-Left Reading Book Cover Layout | D28: Spine Text Width | E28: =WcSpineText | R28: 50 | S28: 0.375 | T28: 0.25 | U28: 0.375 | V28: 9.525 | W28: 9,525 mm (0,375") | Y28: 13,97 x 21,59 cm (5,5" x 8,5") | Z28: 776 | AA28: 828 | AB28: 828
A29: 27 | B29: Cover | C29: Right-to-Left Reading Book Cover Layout | D29: Spine Margin | E29: =CcMarginS | R29: 51 | S29: 0.375 | T29: 0.25 | U29: 0.375 | V29: 9.525 | W29: 9,525 mm (0,375") | Y29: 15,24 x 22,86 cm (6" x 9") | Z29: 776 | AA29: 828 | AB29: 828
A30: 28 | B30: Cover | C30: Right-to-Left Reading Book Cover Layout | D30: Bleed | E30: =CcBleed | R30: 52 | S30: 0.375 | T30: 0.25 | U30: 0.375 | V30: 9.525 | W30: 9,525 mm (0,375") | Y30: 15,6 x 23,39 cm (6,14" x 9,21") | Z30: 776 | AA30: 828 | AB30: 828
A31: 29 | B31: Cover | C31: Right-to-Left Reading Book Cover Layout | D31: Trim Variance | E31: =CcTrimVar | R31: 53 | S31: 0.375 | T31: 0.25 | U31: 0.375 | V31: 9.525 | W31: 9,525 mm (0,375") | Y31: 16,99 x 24,41 cm (6,69" x 9,61") | Z31: 776 | AA31: 828 | AB31: 828
A32: 30 | B32: Cover | C32: Right-to-Left Reading Book Cover Layout | D32: Outside Margin | E32: =CcMarginO | R32: 54 | S32: 0.375 | T32: 0.25 | U32: 0.375 | V32: 9.525 | W32: 9,525 mm (0,375") | Y32: 17,78 x 25,4 cm (7" x 10") | Z32: 776 | AA32: 828 | AB32: 828
A33: 31 | B33: Cover | C33: Right-to-Left Reading Book Cover Layout | D33: Barcode Size | E33: =CcbarSize | R33: 55 | S33: 0.375 | T33: 0.25 | U33: 0.375 | V33: 9.525 | W33: 9,525 mm (0,375") | Y33: 18,9 x 24,61 cm (7,44" x 9,69") | Z33: 776 | AA33: 828 | AB33: 828
A34: 32 | B34: Cover | C34: Right-to-Left Reading Book Cover Layout | D34: Safe Zone Size | E34: =ScSafeZone | R34: 56 | S34: 0.375 | T34: 0.25 | U34: 0.375 | V34: 9.525 | W34: 9,525 mm (0,375") | Y34: 19,05 x 23,5 cm (7,5" x 9,25") | Z34: 776 | AA34: 828 | AB34: 828
A35: 33 | B35: Cover | C35: Right-to-Left Reading Book Cover Layout | D35: Trim Size | E35: =ScTrim | R35: 57 | S35: 0.375 | T35: 0.25 | U35: 0.375 | V35: 9.525 | W35: 9,525 mm (0,375") | Y35: 20,32 x 25,4 cm (8" x 10") | Z35: 776 | AA35: 828 | AB35: 828
A36: 34 | B36: Cover | C36: Right-to-Left Reading Book Cover Layout | D36: Cover Size | E36: =ScSize | R36: 58 | S36: 0.375 | T36: 0.25 | U36: 0.375 | V36: 9.525 | W36: 9,525 mm (0,375") | Y36: 20,96 x 15,24 cm (8,25" x 6") | Z36: 750 | AA36: 800 | AB36: 800
A37: 35 | B37: Cover | C37: Right-to-Left Reading Book Cover Layout | D37: Barcode Placement | E37: =CcrlBarcodeP | R37: 59 | S37: 0.375 | T37: 0.25 | U37: 0.375 | V37: 9.525 | W37: 9,525 mm (0,375") | Y37: 20,96 x 20,96 cm (8,25" x 8,25") | Z37: 750 | AA37: 800 | AB37: 800
A38: 36 | B38: Input | C38: Input | D38: Page Number | E38: =IPgNo | R38: 60 | S38: 0.375 | T38: 0.25 | U38: 0.375 | V38: 9.525 | W38: 9,525 mm (0,375") | Y38: 21,59 x 21,59 cm (8,5" x 8,5") | Z38: 550 | AA38: 590 | AB38: 590
A39: 37 | B39: Input | C39: Input | D39: Trim Size | E39: =ITrimSize | R39: 61 | S39: 0.375 | T39: 0.25 | U39: 0.375 | V39: 9.525 | W39: 9,525 mm (0,375") | Y39: 21,59 x 27,94 cm (8,5" x 11") | Z39: 550 | AA39: 590 | AB39: 590
A40: 38 | B40: Input | C40: Input | D40: Trim Width | E40: =IWtrim | R40: 62 | S40: 0.375 | T40: 0.25 | U40: 0.375 | V40: 9.525 | W40: 9,525 mm (0,375") | Y40: 21 x 29,7 cm (8,27" x 11,69") | Z40: 730 | AA40: 780 | AB40: Non disponible
A41: 39 | B41: Input | C41: Input | D41: Trim Height | E41: =IHtrim | R41: 63 | S41: 0.375 | T41: 0.25 | U41: 0.375 | V41: 9.525 | W41: 9,525 mm (0,375")
A42: 40 | B42: Input | C42: Input | D42: Ink and Paper Choice | E42: =IPaperChoice | R42: 64 | S42: 0.375 | T42: 0.25 | U42: 0.375 | V42: 9.525 | W42: 9,525 mm (0,375")
A43: 41 | B43: Input | C43: Variable | D43: PPI | E43: =VPPI | R43: 65 | S43: 0.375 | T43: 0.25 | U43: 0.375 | V43: 9.525 | W43: 9,525 mm (0,375")
A44: 42 | B44: Input | C44: Input | D44: Bleed Option | E44: =Ibleed | R44: 66 | S44: 0.375 | T44: 0.25 | U44: 0.375 | V44: 9.525 | W44: 9,525 mm (0,375")
A45: 43 | B45: Input | C45: Input | D45: Cover Reading | E45: =Ireading | R45: 67 | S45: 0.375 | T45: 0.25 | U45: 0.375 | V45: 9.525 | W45: 9,525 mm (0,375")
A46: 44 | B46: Cover | C46: Left-to-Right Reading Book Cover Layout | D46: Back Cover Width | E46: =WcBack | R46: 68 | S46: 0.375 | T46: 0.25 | U46: 0.375 | V46: 9.525 | W46: 9,525 mm (0,375")
A47: 45 | B47: Cover | C47: Right-to-Left Reading Book Cover Layout | D47: Back Cover Width | E47: =WcBack | R47: 69 | S47: 0.375 | T47: 0.25 | U47: 0.375 | V47: 9.525 | W47: 9,525 mm (0,375")
A48: 46 | B48: Cover | C48: Left-to-Right Reading Book Cover Layout | D48: Front Cover Width | E48: =WcFront | R48: 70 | S48: 0.375 | T48: 0.25 | U48: 0.375 | V48: 9.525 | W48: 9,525 mm (0,375")
A49: 47 | B49: Cover | C49: Right-to-Left Reading Book Cover Layout | D49: Front Cover Width | E49: =WcFront | R49: 71 | S49: 0.375 | T49: 0.25 | U49: 0.375 | V49: 9.525 | W49: 9,525 mm (0,375")
A50: 48 | B50: Cover | C50: Left-to-Right Reading Book Cover Layout | D50: Back Cover Height | E50: =HcBack | R50: 72 | S50: 0.375 | T50: 0.25 | U50: 0.375 | V50: 9.525 | W50: 9,525 mm (0,375")
A51: 49 | B51: Cover | C51: Right-to-Left Reading Book Cover Layout | D51: Back Cover Height | E51: =HcBack | R51: 73 | S51: 0.375 | T51: 0.25 | U51: 0.375 | V51: 9.525 | W51: 9,525 mm (0,375")
A52: 50 | B52: Cover | C52: Left-to-Right Reading Book Cover Layout | D52: Front Cover Height | E52: =HcFront | R52: 74 | S52: 0.375 | T52: 0.25 | U52: 0.375 | V52: 9.525 | W52: 9,525 mm (0,375")
A53: 51 | B53: Cover | C53: Right-to-Left Reading Book Cover Layout | D53: Front Cover Height | E53: =HcFront | R53: 75 | S53: 0.375 | T53: 0.25 | U53: 0.375 | V53: 9.525 | W53: 9,525 mm (0,375")
A54: 52 | B54: Cover | C54: Left-to-Right Reading Book Cover Layout | D54: Spine Right Margin | E54: =CcMarginSR | R54: 76 | S54: 0.375 | T54: 0.25 | U54: 0.375 | V54: 9.525 | W54: 9,525 mm (0,375")
A55: 53 | B55: Cover | C55: Right-to-Left Reading Book Cover Layout | D55: Spine Right Margin | E55: =CcMarginSR | R55: 77 | S55: 0.375 | T55: 0.25 | U55: 0.375 | V55: 9.525 | W55: 9,525 mm (0,375")
A56: 54 | B56: Cover | C56: Left-to-Right Reading Book Cover Layout | D56: Spine Left Margin | E56: =CcMarginSL | R56: 78 | S56: 0.375 | T56: 0.25 | U56: 0.375 | V56: 9.525 | W56: 9,525 mm (0,375")
A57: 55 | B57: Cover | C57: Right-to-Left Reading Book Cover Layout | D57: Spine Left Margin | E57: =CcMarginSL | R57: 79 | S57: 0.375 | T57: 0.25 | U57: 0.375 | V57: 9.525 | W57: 9,525 mm (0,375")
A58: 56 | B58: Cover | C58: Left-to-Right Reading Book Cover Layout | D58: Bleed Cover Top | E58: =CcBleedT | R58: 80 | S58: 0.375 | T58: 0.25 | U58: 0.375 | V58: 9.525 | W58: 9,525 mm (0,375")
A59: 57 | B59: Cover | C59: Right-to-Left Reading Book Cover Layout | D59: Bleed Cover Top | E59: =CcBleedT | R59: 81 | S59: 0.375 | T59: 0.25 | U59: 0.375 | V59: 9.525 | W59: 9,525 mm (0,375")
A60: 58 | B60: Cover | C60: Left-to-Right Reading Book Cover Layout | D60: Bleed Cover Bottom | E60: =CcBleedB | R60: 82 | S60: 0.375 | T60: 0.25 | U60: 0.375 | V60: 9.525 | W60: 9,525 mm (0,375")
A61: 59 | B61: Cover | C61: Right-to-Left Reading Book Cover Layout | D61: Bleed Cover Bottom | E61: =CcBleedB | R61: 83 | S61: 0.375 | T61: 0.25 | U61: 0.375 | V61: 9.525 | W61: 9,525 mm (0,375")
A62: 60 | B62: Cover | C62: Left-to-Right Reading Book Cover Layout | D62: Bleed Cover Right | E62: =CcBleedR | R62: 84 | S62: 0.375 | T62: 0.25 | U62: 0.375 | V62: 9.525 | W62: 9,525 mm (0,375")
A63: 61 | B63: Cover | C63: Right-to-Left Reading Book Cover Layout | D63: Bleed Cover Right | E63: =CcBleedR | R63: 85 | S63: 0.375 | T63: 0.25 | U63: 0.375 | V63: 9.525 | W63: 9,525 mm (0,375")
A64: 62 | B64: Cover | C64: Left-to-Right Reading Book Cover Layout | D64: Bleed Cover Left | E64: =CcBleedL | R64: 86 | S64: 0.375 | T64: 0.25 | U64: 0.375 | V64: 9.525 | W64: 9,525 mm (0,375")
A65: 63 | B65: Cover | C65: Right-to-Left Reading Book Cover Layout | D65: Bleed Cover Left | E65: =CcBleedL | R65: 87 | S65: 0.375 | T65: 0.25 | U65: 0.375 | V65: 9.525 | W65: 9,525 mm (0,375")
A66: 64 | B66: Manuscript | C66: Bleed Manuscript Layout | D66: Bleed Outside | E66: =CmBleedO | R66: 88 | S66: 0.375 | T66: 0.25 | U66: 0.375 | V66: =ROUND(S66*mm, 5) -> 9.525 | W66: 9,525 mm (0,375")
A67: 65 | B67: Manuscript | C67: Bleed Manuscript Layout | D67: Bleed Top | E67: =CmBleedT | R67: 89 | S67: 0.375 | T67: 0.25 | U67: 0.375 | V67: 9.525 | W67: =V67&" mm"&" ("&S67&""")" -> 9,525 mm (0,375")
A68: 66 | B68: Manuscript | C68: Bleed Manuscript Layout | D68: Bleed Bottom | E68: =CmBleedB | R68: 90 | S68: 0.375 | T68: 0.25 | U68: 0.375 | V68: 9.525 | W68: 9,525 mm (0,375")
A69: 67 | B69: Cover | C69: Right-to-Left Reading Book Cover Layout | D69: Cover Safe Zone Height | E69: =WcSafeZone | R69: 91 | S69: 0.375 | T69: 0.25 | U69: 0.375 | V69: 9.525 | W69: 9,525 mm (0,375")
A70: 68 | B70: Cover | C70: Right-to-Left Reading Book Cover Layout | D70: Cover Safe Zone Width | E70: =HcSafeZone | R70: 92 | S70: 0.375 | T70: 0.25 | U70: 0.375 | V70: 9.525 | W70: 9,525 mm (0,375")
A71: 69 | B71: Cover | C71: Left-to-Right Reading Book Cover Layout | D71: Cover Safe Zone Height | E71: =WcSafeZone | R71: 93 | S71: 0.375 | T71: 0.25 | U71: 0.375 | V71: 9.525 | W71: 9,525 mm (0,375")
A72: 70 | B72: Cover | C72: Left-to-Right Reading Book Cover Layout | D72: Cover Safe Zone Width | E72: =HcSafeZone | R72: 94 | S72: 0.375 | T72: 0.25 | U72: 0.375 | V72: 9.525 | W72: 9,525 mm (0,375")
R73: 95 | S73: 0.375 | T73: 0.25 | U73: 0.375 | V73: 9.525 | W73: 9,525 mm (0,375")
R74: 96 | S74: 0.375 | T74: 0.25 | U74: 0.375 | V74: 9.525 | W74: 9,525 mm (0,375")
R75: 97 | S75: 0.375 | T75: 0.25 | U75: 0.375 | V75: 9.525 | W75: 9,525 mm (0,375")
R76: 98 | S76: 0.375 | T76: 0.25 | U76: 0.375 | V76: 9.525 | W76: 9,525 mm (0,375")
R77: 99 | S77: 0.375 | T77: 0.25 | U77: 0.375 | V77: 9.525 | W77: 9,525 mm (0,375")
R78: 100 | S78: 0.375 | T78: 0.25 | U78: 0.375 | V78: 9.525 | W78: 9,525 mm (0,375")
R79: 101 | S79: 0.375 | T79: 0.25 | U79: 0.375 | V79: 9.525 | W79: 9,525 mm (0,375")
R80: 102 | S80: 0.375 | T80: 0.25 | U80: 0.375 | V80: 9.525 | W80: 9,525 mm (0,375")
R81: 103 | S81: 0.375 | T81: 0.25 | U81: 0.375 | V81: 9.525 | W81: 9,525 mm (0,375")
R82: 104 | S82: 0.375 | T82: 0.25 | U82: 0.375 | V82: 9.525 | W82: 9,525 mm (0,375")
R83: 105 | S83: 0.375 | T83: 0.25 | U83: 0.375 | V83: 9.525 | W83: 9,525 mm (0,375")
R84: 106 | S84: 0.375 | T84: 0.25 | U84: 0.375 | V84: 9.525 | W84: 9,525 mm (0,375")
R85: 107 | S85: 0.375 | T85: 0.25 | U85: 0.375 | V85: 9.525 | W85: 9,525 mm (0,375")
R86: 108 | S86: 0.375 | T86: 0.25 | U86: 0.375 | V86: 9.525 | W86: 9,525 mm (0,375")
R87: 109 | S87: 0.375 | T87: 0.25 | U87: 0.375 | V87: 9.525 | W87: 9,525 mm (0,375")
R88: 110 | S88: 0.375 | T88: 0.25 | U88: 0.375 | V88: 9.525 | W88: 9,525 mm (0,375")
R89: 111 | S89: 0.375 | T89: 0.25 | U89: 0.375 | V89: 9.525 | W89: 9,525 mm (0,375")
R90: 112 | S90: 0.375 | T90: 0.25 | U90: 0.375 | V90: 9.525 | W90: 9,525 mm (0,375")
R91: 113 | S91: 0.375 | T91: 0.25 | U91: 0.375 | V91: 9.525 | W91: 9,525 mm (0,375")
R92: 114 | S92: 0.375 | T92: 0.25 | U92: 0.375 | V92: 9.525 | W92: 9,525 mm (0,375")
R93: 115 | S93: 0.375 | T93: 0.25 | U93: 0.375 | V93: 9.525 | W93: 9,525 mm (0,375")
R94: 116 | S94: 0.375 | T94: 0.25 | U94: 0.375 | V94: 9.525 | W94: 9,525 mm (0,375")
R95: 117 | S95: 0.375 | T95: 0.25 | U95: 0.375 | V95: 9.525 | W95: 9,525 mm (0,375")
R96: 118 | S96: 0.375 | T96: 0.25 | U96: 0.375 | V96: 9.525 | W96: 9,525 mm (0,375")
R97: 119 | S97: 0.375 | T97: 0.25 | U97: 0.375 | V97: 9.525 | W97: 9,525 mm (0,375")
R98: 120 | S98: 0.375 | T98: 0.25 | U98: 0.375 | V98: 9.525 | W98: 9,525 mm (0,375")
R99: 121 | S99: 0.375 | T99: 0.25 | U99: 0.375 | V99: 9.525 | W99: 9,525 mm (0,375")
R100: 122 | S100: 0.375 | T100: 0.25 | U100: 0.375 | V100: 9.525 | W100: 9,525 mm (0,375")
R101: 123 | S101: 0.375 | T101: 0.25 | U101: 0.375 | V101: 9.525 | W101: 9,525 mm (0,375")
R102: 124 | S102: 0.375 | T102: 0.25 | U102: 0.375 | V102: 9.525 | W102: 9,525 mm (0,375")
R103: 125 | S103: 0.375 | T103: 0.25 | U103: 0.375 | V103: 9.525 | W103: 9,525 mm (0,375")
R104: 126 | S104: 0.375 | T104: 0.25 | U104: 0.375 | V104: 9.525 | W104: 9,525 mm (0,375")
R105: 127 | S105: 0.375 | T105: 0.25 | U105: 0.375 | V105: 9.525 | W105: 9,525 mm (0,375")
R106: 128 | S106: 0.375 | T106: 0.25 | U106: 0.375 | V106: 9.525 | W106: 9,525 mm (0,375")
R107: 129 | S107: 0.375 | T107: 0.25 | U107: 0.375 | V107: 9.525 | W107: 9,525 mm (0,375")
R108: 130 | S108: 0.375 | T108: 0.25 | U108: 0.375 | V108: 9.525 | W108: 9,525 mm (0,375")
R109: 131 | S109: 0.375 | T109: 0.25 | U109: 0.375 | V109: 9.525 | W109: 9,525 mm (0,375")
R110: 132 | S110: 0.375 | T110: 0.25 | U110: 0.375 | V110: 9.525 | W110: 9,525 mm (0,375")
R111: 133 | S111: 0.375 | T111: 0.25 | U111: 0.375 | V111: 9.525 | W111: 9,525 mm (0,375")
R112: 134 | S112: 0.375 | T112: 0.25 | U112: 0.375 | V112: 9.525 | W112: 9,525 mm (0,375")
R113: 135 | S113: 0.375 | T113: 0.25 | U113: 0.375 | V113: 9.525 | W113: 9,525 mm (0,375")
R114: 136 | S114: 0.375 | T114: 0.25 | U114: 0.375 | V114: 9.525 | W114: 9,525 mm (0,375")
R115: 137 | S115: 0.375 | T115: 0.25 | U115: 0.375 | V115: 9.525 | W115: 9,525 mm (0,375")
R116: 138 | S116: 0.375 | T116: 0.25 | U116: 0.375 | V116: 9.525 | W116: 9,525 mm (0,375")
R117: 139 | S117: 0.375 | T117: 0.25 | U117: 0.375 | V117: 9.525 | W117: 9,525 mm (0,375")
R118: 140 | S118: 0.375 | T118: 0.25 | U118: 0.375 | V118: 9.525 | W118: 9,525 mm (0,375")
R119: 141 | S119: 0.375 | T119: 0.25 | U119: 0.375 | V119: 9.525 | W119: 9,525 mm (0,375")
R120: 142 | S120: 0.375 | T120: 0.25 | U120: 0.375 | V120: 9.525 | W120: 9,525 mm (0,375")
R121: 143 | S121: 0.375 | T121: 0.25 | U121: 0.375 | V121: 9.525 | W121: 9,525 mm (0,375")
R122: 144 | S122: 0.375 | T122: 0.25 | U122: 0.375 | V122: 9.525 | W122: 9,525 mm (0,375")
R123: 145 | S123: 0.375 | T123: 0.25 | U123: 0.375 | V123: 9.525 | W123: 9,525 mm (0,375")
R124: 146 | S124: 0.375 | T124: 0.25 | U124: 0.375 | V124: 9.525 | W124: 9,525 mm (0,375")
R125: 147 | S125: 0.375 | T125: 0.25 | U125: 0.375 | V125: 9.525 | W125: 9,525 mm (0,375")
R126: 148 | S126: 0.375 | T126: 0.25 | U126: 0.375 | V126: 9.525 | W126: 9,525 mm (0,375")
R127: 149 | S127: 0.375 | T127: 0.25 | U127: 0.375 | V127: 9.525 | W127: 9,525 mm (0,375")
R128: 150 | S128: 0.375 | T128: 0.25 | U128: 0.375 | V128: 9.525 | W128: 9,525 mm (0,375")
R129: 151 | S129: 0.5 | T129: 0.25 | U129: 0.375 | V129: 12.7 | W129: 12,7 mm (0,5")
R130: 152 | S130: 0.5 | T130: 0.25 | U130: 0.375 | V130: =ROUND(S130*mm, 5) -> 12.7 | W130: 12,7 mm (0,5")
R131: 153 | S131: 0.5 | T131: 0.25 | U131: 0.375 | V131: 12.7 | W131: =V131&" mm"&" ("&S131&""")" -> 12,7 mm (0,5")
R132: 154 | S132: 0.5 | T132: 0.25 | U132: 0.375 | V132: 12.7 | W132: 12,7 mm (0,5")
R133: 155 | S133: 0.5 | T133: 0.25 | U133: 0.375 | V133: 12.7 | W133: 12,7 mm (0,5")
R134: 156 | S134: 0.5 | T134: 0.25 | U134: 0.375 | V134: 12.7 | W134: 12,7 mm (0,5")
R135: 157 | S135: 0.5 | T135: 0.25 | U135: 0.375 | V135: 12.7 | W135: 12,7 mm (0,5")
R136: 158 | S136: 0.5 | T136: 0.25 | U136: 0.375 | V136: 12.7 | W136: 12,7 mm (0,5")
R137: 159 | S137: 0.5 | T137: 0.25 | U137: 0.375 | V137: 12.7 | W137: 12,7 mm (0,5")
R138: 160 | S138: 0.5 | T138: 0.25 | U138: 0.375 | V138: 12.7 | W138: 12,7 mm (0,5")
R139: 161 | S139: 0.5 | T139: 0.25 | U139: 0.375 | V139: 12.7 | W139: 12,7 mm (0,5")
R140: 162 | S140: 0.5 | T140: 0.25 | U140: 0.375 | V140: 12.7 | W140: 12,7 mm (0,5")
R141: 163 | S141: 0.5 | T141: 0.25 | U141: 0.375 | V141: 12.7 | W141: 12,7 mm (0,5")
R142: 164 | S142: 0.5 | T142: 0.25 | U142: 0.375 | V142: 12.7 | W142: 12,7 mm (0,5")
R143: 165 | S143: 0.5 | T143: 0.25 | U143: 0.375 | V143: 12.7 | W143: 12,7 mm (0,5")
R144: 166 | S144: 0.5 | T144: 0.25 | U144: 0.375 | V144: 12.7 | W144: 12,7 mm (0,5")
R145: 167 | S145: 0.5 | T145: 0.25 | U145: 0.375 | V145: 12.7 | W145: 12,7 mm (0,5")
R146: 168 | S146: 0.5 | T146: 0.25 | U146: 0.375 | V146: 12.7 | W146: 12,7 mm (0,5")
R147: 169 | S147: 0.5 | T147: 0.25 | U147: 0.375 | V147: 12.7 | W147: 12,7 mm (0,5")
R148: 170 | S148: 0.5 | T148: 0.25 | U148: 0.375 | V148: 12.7 | W148: 12,7 mm (0,5")
R149: 171 | S149: 0.5 | T149: 0.25 | U149: 0.375 | V149: 12.7 | W149: 12,7 mm (0,5")
R150: 172 | S150: 0.5 | T150: 0.25 | U150: 0.375 | V150: 12.7 | W150: 12,7 mm (0,5")
R151: 173 | S151: 0.5 | T151: 0.25 | U151: 0.375 | V151: 12.7 | W151: 12,7 mm (0,5")
R152: 174 | S152: 0.5 | T152: 0.25 | U152: 0.375 | V152: 12.7 | W152: 12,7 mm (0,5")
R153: 175 | S153: 0.5 | T153: 0.25 | U153: 0.375 | V153: 12.7 | W153: 12,7 mm (0,5")
R154: 176 | S154: 0.5 | T154: 0.25 | U154: 0.375 | V154: 12.7 | W154: 12,7 mm (0,5")
R155: 177 | S155: 0.5 | T155: 0.25 | U155: 0.375 | V155: 12.7 | W155: 12,7 mm (0,5")
R156: 178 | S156: 0.5 | T156: 0.25 | U156: 0.375 | V156: 12.7 | W156: 12,7 mm (0,5")
R157: 179 | S157: 0.5 | T157: 0.25 | U157: 0.375 | V157: 12.7 | W157: 12,7 mm (0,5")
R158: 180 | S158: 0.5 | T158: 0.25 | U158: 0.375 | V158: 12.7 | W158: 12,7 mm (0,5")
R159: 181 | S159: 0.5 | T159: 0.25 | U159: 0.375 | V159: 12.7 | W159: 12,7 mm (0,5")
R160: 182 | S160: 0.5 | T160: 0.25 | U160: 0.375 | V160: 12.7 | W160: 12,7 mm (0,5")
R161: 183 | S161: 0.5 | T161: 0.25 | U161: 0.375 | V161: 12.7 | W161: 12,7 mm (0,5")
R162: 184 | S162: 0.5 | T162: 0.25 | U162: 0.375 | V162: 12.7 | W162: 12,7 mm (0,5")
R163: 185 | S163: 0.5 | T163: 0.25 | U163: 0.375 | V163: 12.7 | W163: 12,7 mm (0,5")
R164: 186 | S164: 0.5 | T164: 0.25 | U164: 0.375 | V164: 12.7 | W164: 12,7 mm (0,5")
R165: 187 | S165: 0.5 | T165: 0.25 | U165: 0.375 | V165: 12.7 | W165: 12,7 mm (0,5")
R166: 188 | S166: 0.5 | T166: 0.25 | U166: 0.375 | V166: 12.7 | W166: 12,7 mm (0,5")
R167: 189 | S167: 0.5 | T167: 0.25 | U167: 0.375 | V167: 12.7 | W167: 12,7 mm (0,5")
R168: 190 | S168: 0.5 | T168: 0.25 | U168: 0.375 | V168: 12.7 | W168: 12,7 mm (0,5")
R169: 191 | S169: 0.5 | T169: 0.25 | U169: 0.375 | V169: 12.7 | W169: 12,7 mm (0,5")
R170: 192 | S170: 0.5 | T170: 0.25 | U170: 0.375 | V170: 12.7 | W170: 12,7 mm (0,5")
R171: 193 | S171: 0.5 | T171: 0.25 | U171: 0.375 | V171: 12.7 | W171: 12,7 mm (0,5")
R172: 194 | S172: 0.5 | T172: 0.25 | U172: 0.375 | V172: 12.7 | W172: 12,7 mm (0,5")
R173: 195 | S173: 0.5 | T173: 0.25 | U173: 0.375 | V173: 12.7 | W173: 12,7 mm (0,5")
R174: 196 | S174: 0.5 | T174: 0.25 | U174: 0.375 | V174: 12.7 | W174: 12,7 mm (0,5")
R175: 197 | S175: 0.5 | T175: 0.25 | U175: 0.375 | V175: 12.7 | W175: 12,7 mm (0,5")
R176: 198 | S176: 0.5 | T176: 0.25 | U176: 0.375 | V176: 12.7 | W176: 12,7 mm (0,5")
R177: 199 | S177: 0.5 | T177: 0.25 | U177: 0.375 | V177: 12.7 | W177: 12,7 mm (0,5")
R178: 200 | S178: 0.5 | T178: 0.25 | U178: 0.375 | V178: 12.7 | W178: 12,7 mm (0,5")
R179: 201 | S179: 0.5 | T179: 0.25 | U179: 0.375 | V179: 12.7 | W179: 12,7 mm (0,5")
R180: 202 | S180: 0.5 | T180: 0.25 | U180: 0.375 | V180: 12.7 | W180: 12,7 mm (0,5")
R181: 203 | S181: 0.5 | T181: 0.25 | U181: 0.375 | V181: 12.7 | W181: 12,7 mm (0,5")
R182: 204 | S182: 0.5 | T182: 0.25 | U182: 0.375 | V182: 12.7 | W182: 12,7 mm (0,5")
R183: 205 | S183: 0.5 | T183: 0.25 | U183: 0.375 | V183: 12.7 | W183: 12,7 mm (0,5")
R184: 206 | S184: 0.5 | T184: 0.25 | U184: 0.375 | V184: 12.7 | W184: 12,7 mm (0,5")
R185: 207 | S185: 0.5 | T185: 0.25 | U185: 0.375 | V185: 12.7 | W185: 12,7 mm (0,5")
R186: 208 | S186: 0.5 | T186: 0.25 | U186: 0.375 | V186: 12.7 | W186: 12,7 mm (0,5")
R187: 209 | S187: 0.5 | T187: 0.25 | U187: 0.375 | V187: 12.7 | W187: 12,7 mm (0,5")
R188: 210 | S188: 0.5 | T188: 0.25 | U188: 0.375 | V188: 12.7 | W188: 12,7 mm (0,5")
R189: 211 | S189: 0.5 | T189: 0.25 | U189: 0.375 | V189: 12.7 | W189: 12,7 mm (0,5")
R190: 212 | S190: 0.5 | T190: 0.25 | U190: 0.375 | V190: 12.7 | W190: 12,7 mm (0,5")
R191: 213 | S191: 0.5 | T191: 0.25 | U191: 0.375 | V191: 12.7 | W191: 12,7 mm (0,5")
R192: 214 | S192: 0.5 | T192: 0.25 | U192: 0.375 | V192: 12.7 | W192: 12,7 mm (0,5")
R193: 215 | S193: 0.5 | T193: 0.25 | U193: 0.375 | V193: 12.7 | W193: 12,7 mm (0,5")
R194: 216 | S194: 0.5 | T194: 0.25 | U194: 0.375 | V194: =ROUND(S194*mm, 5) -> 12.7 | W194: 12,7 mm (0,5")
R195: 217 | S195: 0.5 | T195: 0.25 | U195: 0.375 | V195: 12.7 | W195: =V195&" mm"&" ("&S195&""")" -> 12,7 mm (0,5")
R196: 218 | S196: 0.5 | T196: 0.25 | U196: 0.375 | V196: 12.7 | W196: 12,7 mm (0,5")
R197: 219 | S197: 0.5 | T197: 0.25 | U197: 0.375 | V197: 12.7 | W197: 12,7 mm (0,5")
R198: 220 | S198: 0.5 | T198: 0.25 | U198: 0.375 | V198: 12.7 | W198: 12,7 mm (0,5")
R199: 221 | S199: 0.5 | T199: 0.25 | U199: 0.375 | V199: 12.7 | W199: 12,7 mm (0,5")
R200: 222 | S200: 0.5 | T200: 0.25 | U200: 0.375 | V200: 12.7 | W200: 12,7 mm (0,5")
... 606 more rows
